Workbook

Sheet 1. Utility_Info_
AB1: Algoma Power Inc.
AB2: Atikokan Hydro Inc.
AB3: Attawapiskat Power Corporation
AB4: Bluewater Power Distribution Corp.
AB5: Brant County Power
AB6: Brantford Power Inc.
AB7: Burlington Hydro Inc.
AB8: Cambridge and North Dumfries Hydro
AB9: Canadian Niagara Power Inc. – Eastern Ontario Power/Fort Erie/Port Colborne
AB10: Centre Wellington Hydro Ltd.
AB11: Chapleau Public Utilities Corporation
AB12: COLLUS Power Corp.
AB13: Cooperative Hydro Embrun Inc.
AB14: E.L.K. Energy Inc.
C15: Utility Name | D15: Alectra Utilities Corporation - PowerStream Rate Zone | AB15: Enersource Hydro Mississauga Inc.
AB16: Entegrus Powerlines Inc.
C17: Assigned EB Number | D17: EB-2025-0252 | AB17: ENWIN Utilities Ltd.
AB18: Erie Thames Powerlines Corp.
C19: Name and Title | D19: Natalie Yeates, Director, Regulatory Affairs | AB19: Espanola Regional Hydro Distribution Corporation
AB20: Essex Powerlines Corporation
C21: Phone Number | D21: 416-617-1959 | AB21: Festival Hydro Inc.
AB22: Fort Albany Power Corporation
C23: Email Address | D23: natalie.yeates@alectrautilities.com | AB23: Fort Frances Power Corporation
AB24: Greater Sudbury Hydro Inc.
C25: Date | AB25: Grimsby Power Inc.
AB26: Guelph Hydro Electric Systems Inc.
C27: ICM Project | D27: 2018 - Road Authority YRRT | AB27: Haldimand County Hydro Inc.
AB28: Halton Hills Hydro Inc.
AB29: Hearst Power Distribution Co. Ltd.
A30: Note: Drop-down lists are shaded blue; Input cells are shaded green.
AB32: Horizon Utilities Corporation
AB33: Hydro 2000 Inc.
AB34: Hydro Hawkesbury Inc.
AB35: Hydro One Brampton Networks Inc.
AB36: Hydro One Networks Inc.
AB37: Hydro One Remote Communities Inc.
AB38: Hydro Ottawa Limited
AB39: Innisfil Hydro Dist. Systems Limited
AB40: Kashechewan Power Corporation
AB41: Kenora Hydro Electric Corporation Ltd.
AB42: Kingston Hydro Corporation
AB43: Kitchener-Wilmot Hydro Inc.
AB44: Lakefront Utilities Inc.
AB45: Lakeland Power Distribution Ltd.
AB46: London Hydro Inc.
AB47: Midland Power Utility Corporation
AB48: Milton Hydro Distribution Inc.
AB49: Newmarket – Tay Power Distribution Ltd.
AB50: Niagara Peninsula Energy Inc.
AB51: Niagara-on-the-Lake Hydro Inc.
AB52: Norfolk Power Distribution Ltd.
AB53: North Bay Hydro Distribution Limited
AB54: Northern Ontario Wires Inc.
AB55: Oakville Hydro Distribution Inc.
AB56: Orangeville Hydro Limited
AB57: Orillia Power Distribution Corp.
AB58: Oshawa PUC Networks Inc.
AB59: Ottawa River Power Corporation
AB60: Parry Sound Power Corporation
AB61: Peterborough Distribution Inc.
AB62: PowerStream Inc.
AB63: PUC Distribution Inc.
AB64: Renfrew Hydro Inc.
AB65: Rideau St. Lawrence Distribution Inc.
AB66: St. Thomas Energy Inc.
AB67: Sioux Lookout Hydro Inc.
AB68: Thunder Bay Hydro Electricity Distribution
AB69: Tillsonburg Hydro Inc.
AB70: Toronto Hydro-Electric System Limited
AB71: Veridian Connections Inc.
AB72: Wasaga Distribution Inc.
AB73: Waterloo North Hydro Inc.
AB74: Welland Hydro Electric System Corp.
AB75: Wellington North Power Inc.
AB76: West Coast Huron Energy Inc.
AB77: Westario Power Inc.
AB78: Whitby Hydro Electric Corporation
AB79: Woodstock Hydro Services Inc.
AB81: Alectra Utilities Corporation - PowerStream Rate Zone
AB82: Alectra Utilities Corporation - Brampton Rate Zone
AB83: Alectra Utilities Corporation - Enersource Rate Zone
AB84: Alectra Utilities Corporation - Horizon Rate Zone
AB85: Alectra Utilities Corporation - Guelph Rate Zone

Sheet 2. ICM_Costs
G18: 2018 | K18: Total
B19: Sheet 2: ICM Capital Cost Data | G19: Audited Actual
B39: 1 | C39: Capital Costs
E40: Asset Type
C41: SYSTEM ACCESS | E41: Asset type must be selected to enable calculations | G41: =IF(ISBLANK(G19),"",G19) -> Audited Actual
E42: OH Swtch & Cpctrs | G42: 1428623.658 | K42: =SUM(G42,I42) -> 1428623.658
E44: Concrete Poles | G44: 8730477.91 | K44: =SUM(G44,I44) -> 8730477.91
E46: OH Transformers | G46: 1587359.62 | K46: =SUM(G46,I46) -> 1587359.62
E48: OH Prim Cond & Dev | G48: 2381039.43 | K48: =SUM(G48,I48) -> 2381039.43
E50: OH Sec Cond & Dev | G50: 793679.81 | K50: =SUM(G50,I50) -> 793679.81
E52: UG Prim XLPE TR | G52: 476207.886 | K52: 476207.886
E54: UG Sec - Dir Buried | G54: 476207.886 | K54: 476207.886
K56: 0
K58: 0
K60: 0
C62: Total System Access | G62: =SUM(G42,G44,G46,G48,G50,G52,G54,G56,G58,G60) -> 15873596.2 | K62: =SUM(K42,K44,K46,K48,K50,K52,K54,K56,K58,K60) -> 15873596.2
E64: =E40 -> Asset Type
C65: SYSTEM RENEWAL | G65: =G41 -> Audited Actual
K66: =SUM(G66,I66) -> 0
K68: =SUM(G68,I68) -> 0
K70: =SUM(G70,I70) -> 0
K72: =SUM(G72,I72) -> 0
K74: =SUM(G74,I74) -> 0
K76: =SUM(G76,I76) -> 0
K78: =SUM(G78,I78) -> 0
K80: =SUM(G80,I80) -> 0
K82: =SUM(G82,I82) -> 0
K84: 0
C86: Total System Renewal | G86: =SUM(G66,G68,G70,G72,G74,G76,G78,G80,G82,G84) -> 0 | K86: =SUM(K66,K68,K70,K72,K74,K76,K78,K80,K82,K84) -> 0
E88: =E64 -> Asset Type
C89: SYSTEM SERVICE | G89: =G65 -> Audited Actual
K90: =SUM(G90,I90) -> 0
K92: =SUM(G92,I92) -> 0
K94: =SUM(G94,I94) -> 0
K96: =SUM(G96,I96) -> 0
K98: =SUM(G98,I98) -> 0
K100: =SUM(G100,I100) -> 0
K102: =SUM(G102,I102) -> 0
K104: =SUM(G104,I104) -> 0
K106: =SUM(G106,I106) -> 0
K108: 0
C110: Total System Service | G110: =SUM(G90,G92,G94,G96,G98,G100,G102,G104,G106,G108) -> 0 | K110: =SUM(K90,K92,K94,K96,K98,K100,K102,K104,K106,K108) -> 0
E112: =E88 -> Asset Type
C113: GENERAL PLANT | G113: Audited Actual
K115: =SUM(G115,I115) -> 0
K117: =SUM(G117,I117) -> 0
K119: =SUM(G119,I119) -> 0
K121: =SUM(G121,I121) -> 0
K123: =SUM(G123,I123) -> 0
K125: =SUM(G125,I125) -> 0
K127: =SUM(G127,I127) -> 0
K129: =SUM(G129,I129) -> 0
K131: =SUM(G131,I131) -> 0
K133: 0
C135: Total General Plant | G135: =SUM(G115,G117,G119,G121,G123,G125,G127,G129,G131,G133) -> 0 | K135: =SUM(K115,K117,K119,K121,K123,K125,K127,K129,K131,K133) -> 0
E137: =E112 -> Asset Type
G138: Audited Actual
K140: =SUM(G140,I140) -> 0
K142: =SUM(G142,I142) -> 0
K144: =SUM(G144,I144) -> 0
K146: =SUM(G146,I146) -> 0
K148: =SUM(G148,I148) -> 0
K150: =SUM(G150,I150) -> 0
K152: =SUM(G152,I152) -> 0
K154: =SUM(G154,I154) -> 0
K156: =SUM(G156,I156) -> 0
K158: 0
C160: Total | G160: =SUM(G140,G142,G144,G146,G148,G150,G152,G154,G156,G158) -> 0 | K160: =SUM(K140,K142,K144,K146,K148,K150,K152,K154,K156,K158) -> 0
C162: Total Capital Costs Related to Incremental Capital Projects (ICP) | G162: =G160+G135+G110+G86+G62 -> 15873596.2 | K162: =SUM(K62,K86,K110,K135,K160) -> 15873596.2
E164: =E137 -> Asset Type
C165: OTHER CAPITAL COST | G165: Audited Actual
C167: A | K167: =SUM(G167,I167) -> 0
C169: B | K169: =SUM(G169,I169) -> 0
C171: C | K171: =SUM(G171,I171) -> 0
C173: Total Other Capital Costs | G173: =SUM(G167,G169,G171) -> 0 | K173: =SUM(K167,K169,K171) -> 0
C175: Total ICM Capital Costs | G175: =G162+G173 -> 15873596.2 | K175: =K162+K173 -> 15873596.2
B178: 2 | C178: Aggregated ICM Costs by Category
C180: Asset Account | D180: Capital | E180: Account
C182: 120227 | D182: OH Swtch & Cpctrs | E182: 1835 | G182: =SUMIF($E$42:$E$171,$D182,G$42:G$171) -> 1428623.658 | K182: =SUM(G182:J182) -> 1428623.658
C184: 120223 | D184: Concrete Poles | E184: 1830 | G184: =SUMIF($E$42:$E$171,$D184,G$42:G$171) -> 8730477.91 | K184: =SUM(G184:J184) -> 8730477.91
C186: 120221 | D186: Wood Poles | E186: 1830 | G186: =SUMIF($E$42:$E$171,$D186,G$42:G$171) -> 0 | K186: =SUM(G186:J186) -> 0
C188: 120225 | D188: OH Transformers | E188: 1850 | G188: =SUMIF($E$42:$E$171,$D188,G$42:G$171) -> 1587359.62 | K188: =SUM(G188:J188) -> 1587359.62
C190: 120224 | D190: OH Prim Cond & Dev | E190: 1835 | G190: =SUMIF($E$42:$E$171,$D190,G$42:G$171) -> 2381039.43 | K190: =SUM(G190:J190) -> 2381039.43
C192: 120226 | D192: OH Sec Cond & Dev | E192: 1855 | G192: =SUMIF($E$42:$E$171,$D192,G$42:G$171) -> 793679.81 | K192: =SUM(G192:J192) -> 793679.81
C194: 120243 | D194: UG Transformers | E194: ='3. Cost_of_Service_Parameters'!E57 -> 1850 | G194: =SUMIF($E$42:$E$171,$D194,G$42:G$171) -> 0 | K194: =SUM(G194:J194) -> 0
C196: 120245 | D196: UG Conduit | E196: 1840 | G196: =SUMIF($E$42:$E$171,$D196,G$42:G$171) -> 0 | K196: =SUM(G196:J196) -> 0
C198: 120241.XLPETR | D198: UG Prim XLPE TR | E198: 1845 | G198: =SUMIF($E$42:$E$171,$D198,G$42:G$171) -> 476207.886 | K198: =SUM(G198:J198) -> 476207.886
C200: 120242.DB | D200: UG Sec - Dir Buried | E200: 1845 | G200: =SUMIF($E$42:$E$171,$D200,G$42:G$171) -> 476207.886 | K200: =SUM(G200:J200) -> 476207.886
C202: 120242.IDSERV | D202: UG Sec In Duct/Svs | E202: 1845 | G202: =SUMIF($E$42:$E$171,$D202,G$42:G$171) -> 0 | K202: 0
C204: 120248 | D204: Air Insulated Switchgear | E204: 1845 | G204: 0 | K204: 0
C206: 120249 | D206: Solid Dielectric Switchgear | E206: 1845 | G206: 0 | K206: 0
C208: 120244 | D208: UG Cable Injection | E208: 1845 | G208: 0
C210: 120063.MS | D210: MS Integrated P&C Systems | E210: 1820 | G210: 0
C212: 120021.MS | D212: MS Building Improvements | E212: 1820 | G212: =SUMIF($E$42:$E$171,$D212,G$42:G$171) -> 0
C214: 130104 | D214: Capital Contributions Paid | E214: 1609 | G214: 0
D219: Total Capital Costs | G219: =SUM(G182:G217) -> 15873596.2 | K219: =SUM(K182:K217) -> 15873596.2
G220: =IF(G219=G175," ","Error") ->  | K220: =IF(K219=K175,"","Error") -> 

Sheet 3. Cost_of_Service_Parameters
B17: Sheet 3: Parameters and Rates
G19: 2018 | I19: 2019 | K19: 2020 | M19: 2021 | O19: 2022 | Q19: 2023 | S19: 2024 | U19: 2025 | W19: 2026
B20: Cost of Capital
C21: Capital Structure
D22: Deemed Short-term Debt Capitalization | G22: 0.04 | I22: 0.04 | K22: 0.04 | M22: 0.04 | O22: 0.04 | Q22: 0.04 | S22: 0.04 | U22: 0.04 | W22: 0.04
D23: Deemed Long-term Debt Capitalization | G23: =60%-G22 -> 0.56 | I23: =G23-(I22-G22) -> 0.56 | K23: =I23-(K22-I22) -> 0.56 | M23: =K23-(M22-K22) -> 0.56 | O23: =M23-(O22-M22) -> 0.56 | Q23: =O23-(Q22-O22) -> 0.56 | S23: =Q23-(S22-Q22) -> 0.56 | U23: =S23-(U22-S22) -> 0.56 | W23: =U23-(W22-U22) -> 0.56
D24: Deemed Equity Capitalization | G24: =100%-G23-G25-G22 -> 0.4 | I24: =100%-I23-I25-I22 -> 0.4 | K24: =100%-K23-K25-K22 -> 0.4 | M24: =100%-M23-M25-M22 -> 0.4 | O24: =100%-O23-O25-O22 -> 0.4 | Q24: =100%-Q23-Q25-Q22 -> 0.4 | S24: =100%-S23-S25-S22 -> 0.4 | U24: =100%-U23-U25-U22 -> 0.4 | W24: =100%-W23-W25-W22 -> 0.4
D25: Preferred Shares
C26: Total | G26: =SUM(G22:G25) -> 1 | I26: =SUM(I22:I25) -> 1 | K26: =SUM(K22:K25) -> 1 | M26: =SUM(M22:M25) -> 1 | O26: =SUM(O22:O25) -> 1 | Q26: =SUM(Q22:Q25) -> 1 | S26: =SUM(S22:S25) -> 1 | U26: =SUM(U22:U25) -> 1 | W26: =SUM(W22:W25) -> 1
C28: Cost of Capital Parameters
D29: Deemed Short-term Debt Rate | G29: 0.0176 | I29: 0.0176 | K29: 0.0176 | M29: 0.0176 | O29: 0.0176 | Q29: 0.0176 | S29: 0.0176 | U29: 0.0176 | W29: 0.0176
D30: Long-term Debt Rate (actual/embedded/deemed)1 | G30: 0.03882504 | I30: 0.03882504 | K30: 0.03882504 | M30: 0.03882504 | O30: 0.03882504 | Q30: 0.03882504 | S30: 0.03882504 | U30: 0.03882504 | W30: 0.03882504
D31: Target Return on Equity (ROE) | G31: 0.0878 | I31: 0.0878 | K31: 0.0878 | M31: 0.0878 | O31: 0.0878 | Q31: 0.0878 | S31: 0.0878 | U31: 0.0878 | W31: 0.0878
D32: Return on Preferred Shares
C33: WACC | G33: =SUMPRODUCT(G22:G25,G29:G32) -> 0.0575660224 | I33: =SUMPRODUCT(I22:I25,I29:I32) -> 0.0575660224 | K33: =SUMPRODUCT(K22:K25,K29:K32) -> 0.0575660224 | M33: =SUMPRODUCT(M22:M25,M29:M32) -> 0.0575660224 | O33: =SUMPRODUCT(O22:O25,O29:O32) -> 0.0575660224 | Q33: =SUMPRODUCT(Q22:Q25,Q29:Q32) -> 0.0575660224 | S33: =SUMPRODUCT(S22:S25,S29:S32) -> 0.0575660224 | U33: =SUMPRODUCT(U22:U25,U29:U32) -> 0.0575660224 | W33: =SUMPRODUCT(W22:W25,W29:W32) -> 0.0575660224
B35: Working Capital Allowance
C36: Working Capital Allowance Rate | G36: 0.075 | I36: =G36 -> 0.075 | K36: =I36 -> 0.075 | M36: =K36 -> 0.075 | O36: =M36 -> 0.075 | Q36: =O36 -> 0.075 | S36: =Q36 -> 0.075 | U36: =S36 -> 0.075 | W36: =U36 -> 0.075
C37: (% of the sum of Cost of Power + controllable expenses)
B39: Taxes/PILs
C40: Aggregate Corporate Income Tax Rate | G40: 0.265 | I40: 0.265 | K40: 0.265 | M40: 0.265 | O40: 0.265 | Q40: 0.265 | S40: 0.265 | U40: 0.265 | W40: 0.265
C41: Capital Tax (until July 1st, 2010) | G41: 0 | I41: 0 | K41: 0 | M41: 0 | O41: 0 | Q41: 0 | S41: 0 | U41: 0 | W41: 0
B43: Depreciation Rates | E43: Account
B44: (expressed as expected useful life in years)
C45: OH Swtch & Cpctrs | E45: 1835 | G45: 38 | I45: =G45 -> 38 | K45: =I45 -> 38 | M45: =K45 -> 38 | O45: =M45 -> 38 | Q45: =O45 -> 38 | S45: =Q45 -> 38 | U45: 35 | W45: =U45 -> 35
C46: - rate (%) | G46: =IF(G45=0,0,1/G45) -> 0.02631578947 | I46: =IF(I45=0,0,1/I45) -> 0.02631578947 | K46: =IF(K45=0,0,1/K45) -> 0.02631578947 | M46: =IF(M45=0,0,1/M45) -> 0.02631578947 | O46: =IF(O45=0,0,1/O45) -> 0.02631578947 | Q46: =IF(Q45=0,0,1/Q45) -> 0.02631578947 | S46: =IF(S45=0,0,1/S45) -> 0.02631578947 | U46: =IF(U45=0,0,1/U45) -> 0.02857142857 | W46: =IF(W45=0,0,1/W45) -> 0.02857142857
C47: Concrete Poles | E47: 1830 | G47: 51 | I47: =G47 -> 51 | K47: =I47 -> 51 | M47: =K47 -> 51 | O47: =M47 -> 51 | Q47: =O47 -> 51 | S47: =Q47 -> 51 | U47: 60 | W47: =U47 -> 60
C48: - rate (%) | G48: =IF(G47=0,0,1/G47) -> 0.01960784314 | I48: =IF(I47=0,0,1/I47) -> 0.01960784314 | K48: =IF(K47=0,0,1/K47) -> 0.01960784314 | M48: =IF(M47=0,0,1/M47) -> 0.01960784314 | O48: =IF(O47=0,0,1/O47) -> 0.01960784314 | Q48: =IF(Q47=0,0,1/Q47) -> 0.01960784314 | S48: =IF(S47=0,0,1/S47) -> 0.01960784314 | U48: =IF(U47=0,0,1/U47) -> 0.01666666667 | W48: =IF(W47=0,0,1/W47) -> 0.01666666667
C49: Wood Poles | E49: 1830 | G49: 44 | I49: =G49 -> 44 | K49: =I49 -> 44 | M49: =K49 -> 44 | O49: =M49 -> 44 | Q49: =O49 -> 44 | S49: =Q49 -> 44 | U49: 45 | W49: =U49 -> 45
C50: - rate (%) | G50: =IF(G49=0,0,1/G49) -> 0.02272727273 | I50: =IF(I49=0,0,1/I49) -> 0.02272727273 | K50: =IF(K49=0,0,1/K49) -> 0.02272727273 | M50: =IF(M49=0,0,1/M49) -> 0.02272727273 | O50: =IF(O49=0,0,1/O49) -> 0.02272727273 | Q50: =IF(Q49=0,0,1/Q49) -> 0.02272727273 | S50: =IF(S49=0,0,1/S49) -> 0.02272727273 | U50: =IF(U49=0,0,1/U49) -> 0.02222222222 | W50: =IF(W49=0,0,1/W49) -> 0.02222222222
C51: OH Transformers | E51: 1850 | G51: 41 | I51: =G51 -> 41 | K51: =I51 -> 41 | M51: =K51 -> 41 | O51: =M51 -> 41 | Q51: =O51 -> 41 | S51: =Q51 -> 41 | U51: 45 | W51: =U51 -> 45
C52: - rate (%) | G52: =IF(G51=0,0,1/G51) -> 0.0243902439 | I52: =IF(I51=0,0,1/I51) -> 0.0243902439 | K52: =IF(K51=0,0,1/K51) -> 0.0243902439 | M52: =IF(M51=0,0,1/M51) -> 0.0243902439 | O52: =IF(O51=0,0,1/O51) -> 0.0243902439 | Q52: =IF(Q51=0,0,1/Q51) -> 0.0243902439 | S52: =IF(S51=0,0,1/S51) -> 0.0243902439 | U52: =IF(U51=0,0,1/U51) -> 0.02222222222 | W52: =IF(W51=0,0,1/W51) -> 0.02222222222
C53: OH Prim Cond & Dev | E53: 1835 | G53: 45 | I53: =G53 -> 45 | K53: =I53 -> 45 | M53: =K53 -> 45 | O53: =M53 -> 45 | Q53: =O53 -> 45 | S53: =Q53 -> 45 | U53: 50 | W53: =U53 -> 50
C54: - rate (%) | G54: =IF(G53=0,0,1/G53) -> 0.02222222222 | I54: =IF(I53=0,0,1/I53) -> 0.02222222222 | K54: =IF(K53=0,0,1/K53) -> 0.02222222222 | M54: =IF(M53=0,0,1/M53) -> 0.02222222222 | O54: =IF(O53=0,0,1/O53) -> 0.02222222222 | Q54: =IF(Q53=0,0,1/Q53) -> 0.02222222222 | S54: =IF(S53=0,0,1/S53) -> 0.02222222222 | U54: =IF(U53=0,0,1/U53) -> 0.02 | W54: =IF(W53=0,0,1/W53) -> 0.02
C55: OH Sec Cond & Dev | E55: 1855 | G55: 48 | I55: =G55 -> 48 | K55: =I55 -> 48 | M55: =K55 -> 48 | O55: =M55 -> 48 | Q55: =O55 -> 48 | S55: =Q55 -> 48 | U55: 50 | W55: =U55 -> 50
C56: - rate (%) | G56: =IF(G55=0,0,1/G55) -> 0.02083333333 | I56: =IF(I55=0,0,1/I55) -> 0.02083333333 | K56: 0.02083333333 | M56: =IF(M55=0,0,1/M55) -> 0.02083333333 | O56: =IF(O55=0,0,1/O55) -> 0.02083333333 | Q56: =IF(Q55=0,0,1/Q55) -> 0.02083333333 | S56: =IF(S55=0,0,1/S55) -> 0.02083333333 | U56: =IF(U55=0,0,1/U55) -> 0.02 | W56: =IF(W55=0,0,1/W55) -> 0.02
C57: UG Transformers | E57: 1850 | G57: 32 | I57: =G57 -> 32 | K57: =I57 -> 32 | M57: =K57 -> 32 | O57: =M57 -> 32 | Q57: =O57 -> 32 | S57: =Q57 -> 32 | U57: 30 | W57: =U57 -> 30
C58: - rate (%) | G58: =IF(G57=0,0,1/G57) -> 0.03125 | I58: =IF(I57=0,0,1/I57) -> 0.03125 | K58: 0.03125 | M58: =IF(M57=0,0,1/M57) -> 0.03125 | O58: =IF(O57=0,0,1/O57) -> 0.03125 | Q58: =IF(Q57=0,0,1/Q57) -> 0.03125 | S58: =IF(S57=0,0,1/S57) -> 0.03125 | U58: =IF(U57=0,0,1/U57) -> 0.03333333333 | W58: =IF(W57=0,0,1/W57) -> 0.03333333333
C59: UG Conduit | E59: 1840 | G59: 52 | I59: =G59 -> 52 | K59: =I59 -> 52 | M59: =K59 -> 52 | O59: =M59 -> 52 | Q59: =O59 -> 52 | S59: =Q59 -> 52 | U59: 60 | W59: =U59 -> 60
C60: - rate (%) | G60: =IF(G59=0,0,1/G59) -> 0.01923076923 | I60: =IF(I59=0,0,1/I59) -> 0.01923076923 | K60: 0.01923076923 | M60: =IF(M59=0,0,1/M59) -> 0.01923076923 | O60: =IF(O59=0,0,1/O59) -> 0.01923076923 | Q60: =IF(Q59=0,0,1/Q59) -> 0.01923076923 | S60: =IF(S59=0,0,1/S59) -> 0.01923076923 | U60: =IF(U59=0,0,1/U59) -> 0.01666666667 | W60: =IF(W59=0,0,1/W59) -> 0.01666666667
C61: UG Prim XLPE TR | E61: 1845 | G61: 38 | I61: =G61 -> 38 | K61: =I61 -> 38 | M61: =K61 -> 38 | O61: =M61 -> 38 | Q61: =O61 -> 38 | S61: =Q61 -> 38 | U61: 45 | W61: =U61 -> 45
C62: - rate (%) | G62: =IF(G61=0,0,1/G61) -> 0.02631578947 | I62: =IF(I61=0,0,1/I61) -> 0.02631578947 | K62: 0.02631578947 | M62: =IF(M61=0,0,1/M61) -> 0.02631578947 | O62: =IF(O61=0,0,1/O61) -> 0.02631578947 | Q62: =IF(Q61=0,0,1/Q61) -> 0.02631578947 | S62: =IF(S61=0,0,1/S61) -> 0.02631578947 | U62: =IF(U61=0,0,1/U61) -> 0.02222222222 | W62: =IF(W61=0,0,1/W61) -> 0.02222222222
C63: UG Sec - Dir Buried | E63: 1845 | G63: 31 | I63: =G63 -> 31 | K63: =I63 -> 31 | M63: =K63 -> 31 | O63: =M63 -> 31 | Q63: =O63 -> 31 | S63: =Q63 -> 31 | U63: 30 | W63: =U63 -> 30
C64: - rate (%) | G64: 0.03225806452 | I64: 0.03225806452 | K64: 0.03225806452 | M64: =IF(M63=0,0,1/M63) -> 0.03225806452 | O64: =IF(O63=0,0,1/O63) -> 0.03225806452 | Q64: =IF(Q63=0,0,1/Q63) -> 0.03225806452 | S64: =IF(S63=0,0,1/S63) -> 0.03225806452 | U64: =IF(U63=0,0,1/U63) -> 0.03333333333 | W64: =IF(W63=0,0,1/W63) -> 0.03333333333
C65: UG Sec In Duct/Svs | E65: 1845 | G65: 37 | I65: =G65 -> 37 | K65: =I65 -> 37 | M65: =K65 -> 37 | O65: =M65 -> 37 | Q65: =O65 -> 37 | S65: =Q65 -> 37 | U65: 40 | W65: =U65 -> 40
C66: - rate (%) | G66: 0.02702702703 | I66: 0.02702702703 | K66: 0.02702702703 | M66: =IF(M65=0,0,1/M65) -> 0.02702702703 | O66: =IF(O65=0,0,1/O65) -> 0.02702702703 | Q66: =IF(Q65=0,0,1/Q65) -> 0.02702702703 | S66: =IF(S65=0,0,1/S65) -> 0.02702702703 | U66: =IF(U65=0,0,1/U65) -> 0.025 | W66: =IF(W65=0,0,1/W65) -> 0.025
C67: Air Insulated Switchgear | E67: 1845 | G67: 39 | I67: =G67 -> 39 | K67: =I67 -> 39 | M67: =K67 -> 39 | O67: =M67 -> 39 | Q67: =O67 -> 39 | S67: =Q67 -> 39 | U67: 35 | W67: =U67 -> 35
C68: - rate (%) | G68: 0.02564102564 | I68: 0.02564102564 | K68: 0.02564102564 | M68: =IF(M67=0,0,1/M67) -> 0.02564102564 | O68: =IF(O67=0,0,1/O67) -> 0.02564102564 | Q68: =IF(Q67=0,0,1/Q67) -> 0.02564102564 | S68: =IF(S67=0,0,1/S67) -> 0.02564102564 | U68: =IF(U67=0,0,1/U67) -> 0.02857142857 | W68: =IF(W67=0,0,1/W67) -> 0.02857142857
C69: Solid Dielectric Switchgear | E69: 1845 | G69: 42 | I69: =G69 -> 42 | K69: =I69 -> 42 | M69: =K69 -> 42 | O69: =M69 -> 42 | Q69: =O69 -> 42 | S69: =Q69 -> 42 | U69: 45 | W69: =U69 -> 45
C70: - rate (%) | G70: 0.02380952381 | I70: 0.02380952381 | K70: 0.02380952381 | M70: =IF(M69=0,0,1/M69) -> 0.02380952381 | O70: =IF(O69=0,0,1/O69) -> 0.02380952381 | Q70: =IF(Q69=0,0,1/Q69) -> 0.02380952381 | S70: =IF(S69=0,0,1/S69) -> 0.02380952381 | U70: =IF(U69=0,0,1/U69) -> 0.02222222222 | W70: =IF(W69=0,0,1/W69) -> 0.02222222222
C71: UG Cable Injection | E71: 1845 | G71: 24 | I71: =G71 -> 24 | K71: =I71 -> 24 | M71: =K71 -> 24 | O71: =M71 -> 24 | Q71: =O71 -> 24 | S71: =Q71 -> 24 | U71: 20 | W71: =U71 -> 20
C72: - rate (%) | G72: 0.04166666667 | I72: =IF(I71=0,0,1/I71) -> 0.04166666667 | K72: =IF(K71=0,0,1/K71) -> 0.04166666667 | M72: 0.04166666667 | O72: 0.04166666667 | Q72: 0.04166666667 | S72: 0.04166666667 | U72: 0.05 | W72: 0.05
C73: MS Integrated P&C Systems | E73: 1820 | G73: 36 | I73: =G73 -> 36 | K73: =I73 -> 36 | M73: =K73 -> 36 | O73: =M73 -> 36 | Q73: =O73 -> 36 | S73: =Q73 -> 36 | U73: 15 | W73: =U73 -> 15
C74: - rate (%) | G74: 0.02777777778 | I74: =IF(I73=0,0,1/I73) -> 0.02777777778 | K74: =IF(K73=0,0,1/K73) -> 0.02777777778 | M74: 0.02777777778 | O74: 0.02777777778 | Q74: 0.02777777778 | S74: 0.02777777778 | U74: 0.06666666667 | W74: 0.06666666667
C75: MS Building Improvements | E75: 1820 | G75: 21 | I75: =G75 -> 21 | K75: =I75 -> 21 | M75: =K75 -> 21 | O75: =M75 -> 21 | Q75: =O75 -> 21 | S75: =Q75 -> 21 | U75: 25 | W75: =U75 -> 25
C76: - rate (%) | G76: 0.04761904762 | I76: =IF(I75=0,0,1/I75) -> 0.04761904762 | K76: =IF(K75=0,0,1/K75) -> 0.04761904762 | M76: 0.04761904762 | O76: 0.04761904762 | Q76: 0.04761904762 | S76: 0.04761904762 | U76: 0.04 | W76: 0.04
C77: Capital Contributions Paid | E77: 1609 | G77: 40 | I77: =G77 -> 40 | K77: =I77 -> 40 | M77: =K77 -> 40 | O77: =M77 -> 40 | Q77: =O77 -> 40 | S77: =Q77 -> 40 | U77: 40 | W77: =U77 -> 40
C78: - rate (%) | G78: 0.025 | I78: =IF(I77=0,0,1/I77) -> 0.025 | K78: =IF(K77=0,0,1/K77) -> 0.025 | M78: 0.025 | O78: 0.025 | Q78: 0.025 | S78: 0.025 | U78: 0.025 | W78: 0.025
B82: CCA Rates
C83: OH Swtch & Cpctrs - CCA Class | G83: 47 | I83: 47 | K83: 47 | M83: 47 | O83: 47 | Q83: 47 | S83: 47 | U83: 47 | W83: 47
C84: OH Swtch & Cpctrs - CCA Rate | G84: 0.08 | I84: 0.08 | K84: 0.08 | M84: 0.08 | O84: 0.08 | Q84: 0.08 | S84: 0.08 | U84: 0.08 | W84: 0.08
C86: Concrete Poles - CCA Class | G86: 47 | I86: 47 | K86: 47 | M86: 47 | O86: 47 | Q86: 47 | S86: 47 | U86: 47 | W86: 47
C87: Concrete Poles - CCA Rate | G87: 0.08 | I87: 0.08 | K87: 0.08 | M87: 0.08 | O87: 0.08 | Q87: 0.08 | S87: 0.08 | U87: 0.08 | W87: 0.08
C89: Wood Poles - CCA Class | G89: 47 | I89: 47 | K89: 47 | M89: 47 | O89: 47 | Q89: 47 | S89: 47 | U89: 47 | W89: 47
C90: Wood Poles - CCA Rate | G90: 0.08 | I90: 0.08 | K90: 0.08 | M90: 0.08 | O90: 0.08 | Q90: 0.08 | S90: 0.08 | U90: 0.08 | W90: 0.08
C92: OH Transformers - CCA Class | G92: 47 | I92: 47 | K92: 47 | M92: 47 | O92: 47 | Q92: 47 | S92: 47 | U92: 47 | W92: 47
C93: OH Transformers - CCA Rate | G93: 0.08 | I93: 0.08 | K93: 0.08 | M93: 0.08 | O93: 0.08 | Q93: 0.08 | S93: 0.08 | U93: 0.08 | W93: 0.08
C95: OH Prim Cond & Dev - CCA Class | G95: 47 | I95: 47 | K95: 47 | M95: 47 | O95: 47 | Q95: 47 | S95: 47 | U95: 47 | W95: 47
C96: OH Prim Cond & Dev - CCA Rate | G96: 0.08 | I96: 0.08 | K96: 0.08 | M96: 0.08 | O96: 0.08 | Q96: 0.08 | S96: 0.08 | U96: 0.08 | W96: 0.08
C98: OH Sec Cond & Dev - CCA Class | G98: 47 | I98: 47 | K98: 47 | M98: 47 | O98: 47 | Q98: 47 | S98: 47 | U98: 47 | W98: 47
C99: OH Sec Cond & Dev - CCA Rate | G99: 0.08 | I99: 0.08 | K99: 0.08 | M99: 0.08 | O99: 0.08 | Q99: 0.08 | S99: 0.08 | U99: 0.08 | W99: 0.08
C101: UG Transformers - CCA Class | G101: 47 | I101: 47 | K101: 47 | M101: 47 | O101: 47 | Q101: 47 | S101: 47 | U101: 47 | W101: 47
C102: UG Transformers - CCA Rate | G102: 0.08 | I102: 0.08 | K102: 0.08 | M102: 0.08 | O102: 0.08 | Q102: 0.08 | S102: 0.08 | U102: 0.08 | W102: 0.08
C104: OH Services - CCA Class | G104: 47 | I104: 47 | K104: 47 | M104: 47 | O104: 47 | Q104: 47 | S104: 47 | U104: 47 | W104: 47
C105: OH Services - CCA Rate | G105: 0.08 | I105: 0.08 | K105: 0.08 | M105: 0.08 | O105: 0.08 | Q105: 0.08 | S105: 0.08 | U105: 0.08 | W105: 0.08
C107: UG Conduit - CCA Class | G107: 47 | I107: 47 | K107: 47 | M107: 47 | O107: 47 | Q107: 47 | S107: 47 | U107: 47 | W107: 47
C108: UG Conduit - CCA Rate | G108: 0.08 | I108: 0.08 | K108: 0.08 | M108: 0.08 | O108: 0.08 | Q108: 0.08 | S108: 0.08 | U108: 0.08 | W108: 0.08
C110: UG Prim XLPE TR - CCA Class | G110: 47 | I110: 47 | K110: 47 | M110: 47 | O110: 47 | Q110: 47 | S110: 47 | U110: 47 | W110: 47
C111: UG Prim XLPE TR - CCA Rate | G111: 0.08 | I111: 0.08 | K111: 0.08 | M111: 0.08 | O111: 0.08 | Q111: 0.08 | S111: 0.08 | U111: 0.08 | W111: 0.08
C113: UG Sec - Dir Buried - CCA Class | G113: 47 | I113: 47 | K113: 47 | M113: 47 | O113: 47 | Q113: 47 | S113: 47 | U113: 47 | W113: 47
C114: UG Sec - Dir Buried - CCA Rate | G114: 0.08 | I114: 0.08 | K114: 0.08 | M114: 0.08 | O114: 0.08 | Q114: 0.08 | S114: 0.08 | U114: 0.08 | W114: 0.08
C116: UG Sec In Duct/Svs - CCA Class | G116: 47 | I116: 47 | K116: 47 | M116: 47 | O116: 47 | Q116: 47 | S116: 47 | U116: 47 | W116: 47
C117: UG Sec In Duct/Svs - CCA Rate | G117: 0.08 | I117: 0.08 | K117: 0.08 | M117: 0.08 | O117: 0.08 | Q117: 0.08 | S117: 0.08 | U117: 0.08 | W117: 0.08
C119: Air Insulated Switchgear - CCA Class | G119: 47 | I119: 47 | K119: 47 | M119: 47 | O119: 47 | Q119: 47 | S119: 47 | U119: 47 | W119: 47
C120: Air Insulated Switchgear - CCA Rate | G120: 0.08 | I120: 0.08 | K120: 0.08 | M120: 0.08 | O120: 0.08 | Q120: 0.08 | S120: 0.08 | U120: 0.08 | W120: 0.08
C122: Solid Dielectric Switchgear - CCA Class | G122: 47 | I122: 47 | K122: 47 | M122: 47 | O122: 47 | Q122: 47 | S122: 47 | U122: 47 | W122: 47
C123: Solid Dielectric Switchgear - CCA Rate | G123: 0.08 | I123: 0.08 | K123: 0.08 | M123: 0.08 | O123: 0.08 | Q123: 0.08 | S123: 0.08 | U123: 0.08 | W123: 0.08
C125: UG Cable Injection - CCA Class | G125: 47 | I125: 47 | K125: 47 | M125: 47 | O125: 47 | Q125: 47 | S125: 47 | U125: 47 | W125: 47
C126: UG Cable Injection - CCA Rate | G126: 0.08 | I126: 0.08 | K126: 0.08 | M126: 0.08 | O126: 0.08 | Q126: 0.08 | S126: 0.08 | U126: 0.08 | W126: 0.08
C128: MS Integrated P&C Systems - CCA Class | G128: 47 | I128: 47 | K128: 47 | M128: 47 | O128: 47 | Q128: 47 | S128: 47 | U128: 47 | W128: 47
C129: MS Integrated P&C Systems - CCA Rate | G129: 0.08 | I129: 0.08 | K129: 0.08 | M129: 0.08 | O129: 0.08 | Q129: 0.08 | S129: 0.08 | U129: 0.08 | W129: 0.08
C131: MS Building Improvements - CCA Class | G131: 1 | I131: 1 | K131: 1 | M131: 1 | O131: 1 | Q131: 1 | S131: 1 | U131: 1 | W131: 1
C132: MS Building Improvements - CCA Rate | G132: 0.04 | I132: 0.04 | K132: 0.04 | M132: 0.04 | O132: 0.04 | Q132: 0.04 | S132: 0.04 | U132: 0.04 | W132: 0.04
C134: Capital Contributions Paid - CCA Class | G134: 47 | I134: 47 | K134: 47 | M134: 47 | O134: 47 | Q134: 47 | S134: 47 | U134: 47 | W134: 47
C135: Capital Contributions Paid - CCA Rate | G135: 0.08 | I135: 0.08 | K135: 0.08 | M135: 0.08 | O135: 0.08 | Q135: 0.08 | S135: 0.08 | U135: 0.08 | W135: 0.08
B138: Assumptions
B139: 1 | C139: Fiscal calendar year (January 1 to December 31) used.
B140: 3 | C140: Amortization is done on a striaght line basis and no "half-year" rule applied.

Sheet 4. ICM_Assets_and_Rate_Base
B17: Sheet 4: ICM Assets - Net Book Value
I18: ='3. Cost_of_Service_Parameters'!G19 -> 2018 | K18: 2019 | M18: 2020 | O18: 2021 | Q18: 2022 | S18: 2023 | U18: 2024 | W18: 2025 | Y18: 2026
B19: Net Fixed Assets - OH Swtch & Cpctrs
C21: Gross Book Value
D22: Opening Balance | K22: =I25 -> 1428623.658 | M22: =K25 -> 1428623.658 | O22: =M25 -> 1428623.658 | Q22: =O25 -> 1428623.658 | S22: =Q25 -> 1428623.658 | U22: =S25 -> 1428623.658 | W22: =U25 -> 1428623.658 | Y22: =W25 -> 1428623.658
D23: Capital Additions during year (from ICM Costs) | I23: ='2. ICM_Costs'!G182 -> 1428623.658 | K23: ='2. ICM_Costs'!I182 -> 0
D24: Retirements/Removals (if applicable)
D25: Closing Balance | I25: =I22+I23-I24 -> 1428623.658 | K25: =K22+K23-K24 -> 1428623.658 | M25: =M22+M23-M24 -> 1428623.658 | O25: =O22+O23-O24 -> 1428623.658 | Q25: =Q22+Q23-Q24 -> 1428623.658 | S25: =S22+S23-S24 -> 1428623.658 | U25: =U22+U23-U24 -> 1428623.658 | W25: =W22+W23-W24 -> 1428623.658 | Y25: =Y22+Y23-Y24 -> 1428623.658
C27: Accumulated Depreciation
D28: Opening Balance | K28: =I31 -> -37595.35942 | M28: =K31 -> -75190.71884 | O28: =M31 -> -112786.0783 | Q28: =O31 -> -150381.4377 | S28: =Q31 -> -187976.7971 | U28: =S31 -> -225572.1565 | W28: =U31 -> -263167.5159 | Y28: =W31 -> -303985.3347
D29: Amortization expense during year | I29: =IF(ISERROR(-(I23/('3. Cost_of_Service_Parameters'!G45)+MIN((I22/'3. Cost_of_Service_Parameters'!G45),(I22+I28)))), 0, -(I23/('3. Cost_of_Service_Parameters'!G45)+MIN((I22/'3. Cost_of_Service_Parameters'!G45),(I22+I28)))) -> -37595.35942 | K29: =IF(ISERROR(-(K23/('3. Cost_of_Service_Parameters'!I45)+MIN((K22/'3. Cost_of_Service_Parameters'!I45),(K22+K28)))), 0, -(K23/('3. Cost_of_Service_Parameters'!I45)+MIN((K22/'3. Cost_of_Service_Parameters'!I45),(K22+K28)))) -> -37595.35942 | M29: =IF(ISERROR(-(M23/('3. Cost_of_Service_Parameters'!K45)+MIN((M22/'3. Cost_of_Service_Parameters'!K45),(M22+M28)))), 0, -(M23/('3. Cost_of_Service_Parameters'!K45)+MIN((M22/'3. Cost_of_Service_Parameters'!K45),(M22+M28)))) -> -37595.35942 | O29: =IF(ISERROR(-(O23/('3. Cost_of_Service_Parameters'!M45)+MIN((O22/'3. Cost_of_Service_Parameters'!M45),(O22+O28)))), 0, -(O23/('3. Cost_of_Service_Parameters'!M45)+MIN((O22/'3. Cost_of_Service_Parameters'!M45),(O22+O28)))) -> -37595.35942 | Q29: =IF(ISERROR(-(Q23/('3. Cost_of_Service_Parameters'!O45)+MIN((Q22/'3. Cost_of_Service_Parameters'!O45),(Q22+Q28)))), 0, -(Q23/('3. Cost_of_Service_Parameters'!O45)+MIN((Q22/'3. Cost_of_Service_Parameters'!O45),(Q22+Q28)))) -> -37595.35942 | S29: =IF(ISERROR(-(S23/('3. Cost_of_Service_Parameters'!Q45)+MIN((S22/'3. Cost_of_Service_Parameters'!Q45),(S22+S28)))), 0, -(S23/('3. Cost_of_Service_Parameters'!Q45)+MIN((S22/'3. Cost_of_Service_Parameters'!Q45),(S22+S28)))) -> -37595.35942 | U29: =IF(ISERROR(-(U23/('3. Cost_of_Service_Parameters'!S45)+MIN((U22/'3. Cost_of_Service_Parameters'!S45),(U22+U28)))), 0, -(U23/('3. Cost_of_Service_Parameters'!S45)+MIN((U22/'3. Cost_of_Service_Parameters'!S45),(U22+U28)))) -> -37595.35942 | W29: =IF(ISERROR(-(W23/('3. Cost_of_Service_Parameters'!U45)+MIN((W22/'3. Cost_of_Service_Parameters'!U45),(W22+W28)))), 0, -(W23/('3. Cost_of_Service_Parameters'!U45)+MIN((W22/'3. Cost_of_Service_Parameters'!U45),(W22+W28)))) -> -40817.8188 | Y29: =IF(ISERROR(-(Y23/('3. Cost_of_Service_Parameters'!W45)+MIN((Y22/'3. Cost_of_Service_Parameters'!W45),(Y22+Y28)))), 0, -(Y23/('3. Cost_of_Service_Parameters'!W45)+MIN((Y22/'3. Cost_of_Service_Parameters'!W45),(Y22+Y28)))) -> -40817.8188
D30: Retirements/Removals (if applicable)
D31: Closing Balance | I31: =I28+I29-I30 -> -37595.35942 | K31: =K28+K29-K30 -> -75190.71884 | M31: =M28+M29-M30 -> -112786.0783 | O31: =O28+O29-O30 -> -150381.4377 | Q31: =Q28+Q29-Q30 -> -187976.7971 | S31: =S28+S29-S30 -> -225572.1565 | U31: =U28+U29-U30 -> -263167.5159 | W31: =W28+W29-W30 -> -303985.3347 | Y31: =Y28+Y29-Y30 -> -344803.1535
C33: Net Book Value
D34: Opening Balance | I34: =I22+I28 -> 0 | K34: =I35 -> 1391028.299 | M34: =K35 -> 1353432.939 | O34: =M35 -> 1315837.58 | Q34: =O35 -> 1278242.22 | S34: =Q35 -> 1240646.861 | U34: =S35 -> 1203051.501 | W34: =U35 -> 1165456.142 | Y34: =W35 -> 1124638.323
D35: Closing Balance | I35: =I25+I31 -> 1391028.299 | K35: =K25+K31 -> 1353432.939 | M35: =M25+M31 -> 1315837.58 | O35: =O25+O31 -> 1278242.22 | Q35: =Q25+Q31 -> 1240646.861 | S35: =S25+S31 -> 1203051.501 | U35: =U25+U31 -> 1165456.142 | W35: =W25+W31 -> 1124638.323 | Y35: =Y25+Y31 -> 1083820.504
D36: Incremental CAPEX | I36: =I35 -> 1391028.299 | K36: =AVERAGE(K34:K35) -> 1372230.619 | M36: =AVERAGE(M34:M35) -> 1334635.259 | O36: =AVERAGE(O34:O35) -> 1297039.9 | Q36: =AVERAGE(Q34:Q35) -> 1259444.541 | S36: =AVERAGE(S34:S35) -> 1221849.181 | U36: =AVERAGE(U34:U35) -> 1184253.822 | W36: =AVERAGE(W34:W35) -> 1145047.233 | Y36: =AVERAGE(Y34:Y35) -> 1104229.414
B38: Net Fixed Assets - Concrete Poles
C40: Gross Book Value
D41: Opening Balance | K41: =I44 -> 8730477.91 | M41: =K44 -> 8730477.91 | O41: =M44 -> 8730477.91 | Q41: =O44 -> 8730477.91 | S41: =Q44 -> 8730477.91 | U41: =S44 -> 8730477.91 | W41: =U44 -> 8730477.91 | Y41: =W44 -> 8730477.91
D42: Capital Additions during year (from ICM Costs) | I42: ='2. ICM_Costs'!G184 -> 8730477.91 | K42: ='2. ICM_Costs'!I184 -> 0
D43: Retirements/Removals (if applicable)
D44: Closing Balance | I44: =I41+I42-I43 -> 8730477.91 | K44: =K41+K42-K43 -> 8730477.91 | M44: =M41+M42-M43 -> 8730477.91 | O44: =O41+O42-O43 -> 8730477.91 | Q44: =Q41+Q42-Q43 -> 8730477.91 | S44: =S41+S42-S43 -> 8730477.91 | U44: =U41+U42-U43 -> 8730477.91 | W44: =W41+W42-W43 -> 8730477.91 | Y44: =Y41+Y42-Y43 -> 8730477.91
C46: Accumulated Depreciation
D47: Opening Balance | K47: =I50 -> -171185.8414 | M47: =K50 -> -342371.6827 | O47: =M50 -> -513557.5241 | Q47: =O50 -> -684743.3655 | S47: =Q50 -> -855929.2069 | U47: =S50 -> -1027115.048 | W47: =U50 -> -1198300.89 | Y47: =W50 -> -1343808.855
D48: Amortization expense during year | I48: =IF(ISERROR(-(I42/('3. Cost_of_Service_Parameters'!G47)+MIN((I41/'3. Cost_of_Service_Parameters'!G47),(I41+I47)))), 0, -(I42/('3. Cost_of_Service_Parameters'!G47)+MIN((I41/'3. Cost_of_Service_Parameters'!G47),(I41+I47)))) -> -171185.8414 | K48: =IF(ISERROR(-(K42/('3. Cost_of_Service_Parameters'!I47*2)+MIN((K41/'3. Cost_of_Service_Parameters'!I47),(K41+K47)))), 0, -(K42/('3. Cost_of_Service_Parameters'!I47*2)+MIN((K41/'3. Cost_of_Service_Parameters'!I47),(K41+K47)))) -> -171185.8414 | M48: =IF(ISERROR(-(M42/('3. Cost_of_Service_Parameters'!K47*2)+MIN((M41/'3. Cost_of_Service_Parameters'!K47),(M41+M47)))), 0, -(M42/('3. Cost_of_Service_Parameters'!K47*2)+MIN((M41/'3. Cost_of_Service_Parameters'!K47),(M41+M47)))) -> -171185.8414 | O48: =IF(ISERROR(-(O42/('3. Cost_of_Service_Parameters'!M47*2)+MIN((O41/'3. Cost_of_Service_Parameters'!M47),(O41+O47)))), 0, -(O42/('3. Cost_of_Service_Parameters'!M47*2)+MIN((O41/'3. Cost_of_Service_Parameters'!M47),(O41+O47)))) -> -171185.8414 | Q48: =IF(ISERROR(-(Q42/('3. Cost_of_Service_Parameters'!O47*2)+MIN((Q41/'3. Cost_of_Service_Parameters'!O47),(Q41+Q47)))), 0, -(Q42/('3. Cost_of_Service_Parameters'!O47*2)+MIN((Q41/'3. Cost_of_Service_Parameters'!O47),(Q41+Q47)))) -> -171185.8414 | S48: =IF(ISERROR(-(S42/('3. Cost_of_Service_Parameters'!Q47*2)+MIN((S41/'3. Cost_of_Service_Parameters'!Q47),(S41+S47)))), 0, -(S42/('3. Cost_of_Service_Parameters'!Q47*2)+MIN((S41/'3. Cost_of_Service_Parameters'!Q47),(S41+S47)))) -> -171185.8414 | U48: =IF(ISERROR(-(U42/('3. Cost_of_Service_Parameters'!S47*2)+MIN((U41/'3. Cost_of_Service_Parameters'!S47),(U41+U47)))), 0, -(U42/('3. Cost_of_Service_Parameters'!S47*2)+MIN((U41/'3. Cost_of_Service_Parameters'!S47),(U41+U47)))) -> -171185.8414 | W48: =IF(ISERROR(-(W42/('3. Cost_of_Service_Parameters'!U47*2)+MIN((W41/'3. Cost_of_Service_Parameters'!U47),(W41+W47)))), 0, -(W42/('3. Cost_of_Service_Parameters'!U47*2)+MIN((W41/'3. Cost_of_Service_Parameters'!U47),(W41+W47)))) -> -145507.9652 | Y48: =IF(ISERROR(-(Y42/('3. Cost_of_Service_Parameters'!W47*2)+MIN((Y41/'3. Cost_of_Service_Parameters'!W47),(Y41+Y47)))), 0, -(Y42/('3. Cost_of_Service_Parameters'!W47*2)+MIN((Y41/'3. Cost_of_Service_Parameters'!W47),(Y41+Y47)))) -> -145507.9652
D49: Retirements/Removals (if applicable)
D50: Closing Balance | I50: =I47+I48-I49 -> -171185.8414 | K50: =K47+K48-K49 -> -342371.6827 | M50: =M47+M48-M49 -> -513557.5241 | O50: =O47+O48-O49 -> -684743.3655 | Q50: =Q47+Q48-Q49 -> -855929.2069 | S50: =S47+S48-S49 -> -1027115.048 | U50: =U47+U48-U49 -> -1198300.89 | W50: =W47+W48-W49 -> -1343808.855 | Y50: =Y47+Y48-Y49 -> -1489316.82
C52: Net Book Value
D53: Opening Balance | I53: =I41+I47 -> 0 | K53: =I54 -> 8559292.069 | M53: =K54 -> 8388106.227 | O53: =M54 -> 8216920.386 | Q53: =O54 -> 8045734.545 | S53: =Q54 -> 7874548.703 | U53: =S54 -> 7703362.862 | W53: =U54 -> 7532177.02 | Y53: =W54 -> 7386669.055
D54: Closing Balance | I54: =I44+I50 -> 8559292.069 | K54: =K44+K50 -> 8388106.227 | M54: =M44+M50 -> 8216920.386 | O54: =O44+O50 -> 8045734.545 | Q54: =Q44+Q50 -> 7874548.703 | S54: =S44+S50 -> 7703362.862 | U54: =U44+U50 -> 7532177.02 | W54: =W44+W50 -> 7386669.055 | Y54: =Y44+Y50 -> 7241161.09
D55: Incremental CAPEX | I55: =I54 -> 8559292.069 | K55: =AVERAGE(K53:K54) -> 8473699.148 | M55: =AVERAGE(M53:M54) -> 8302513.307 | O55: =AVERAGE(O53:O54) -> 8131327.465 | Q55: =AVERAGE(Q53:Q54) -> 7960141.624 | S55: =AVERAGE(S53:S54) -> 7788955.782 | U55: =AVERAGE(U53:U54) -> 7617769.941 | W55: =AVERAGE(W53:W54) -> 7459423.038 | Y55: =AVERAGE(Y53:Y54) -> 7313915.073
B57: Net Fixed Assets - Wood Poles
C59: Gross Book Value
D60: Opening Balance | K60: =I63 -> 0 | M60: =K63 -> 0 | O60: =M63 -> 0 | Q60: =O63 -> 0 | S60: =Q63 -> 0 | U60: =S63 -> 0 | W60: =U63 -> 0 | Y60: =W63 -> 0
D61: Capital Additions during year (from ICM Costs) | I61: ='2. ICM_Costs'!G186 -> 0
D62: Retirements/Removals (if applicable)
D63: Closing Balance | I63: =I60+I61-I62 -> 0 | K63: =K60+K61-K62 -> 0 | M63: =M60+M61-M62 -> 0 | O63: =O60+O61-O62 -> 0 | Q63: =Q60+Q61-Q62 -> 0 | S63: =S60+S61-S62 -> 0 | U63: =U60+U61-U62 -> 0 | W63: =W60+W61-W62 -> 0 | Y63: =Y60+Y61-Y62 -> 0
C65: Accumulated Depreciation
D66: Opening Balance | K66: =I69 -> 0 | M66: =K69 -> 0 | O66: =M69 -> 0 | Q66: =O69 -> 0 | S66: =Q69 -> 0 | U66: =S69 -> 0 | W66: =U69 -> 0 | Y66: =W69 -> 0
D67: Amortization expense during year | I67: =IF(ISERROR(-(I61/('3. Cost_of_Service_Parameters'!G49)+MIN((I60/'3. Cost_of_Service_Parameters'!G49),(I60+I66)))), 0, -(I61/('3. Cost_of_Service_Parameters'!G49)+MIN((I60/'3. Cost_of_Service_Parameters'!G49),(I60+I66)))) -> 0 | K67: =IF(ISERROR(-(K61/('3. Cost_of_Service_Parameters'!I49*2)+MIN((K60/'3. Cost_of_Service_Parameters'!I49),(K60+K66)))), 0, -(K61/('3. Cost_of_Service_Parameters'!I49*2)+MIN((K60/'3. Cost_of_Service_Parameters'!I49),(K60+K66)))) -> 0 | M67: =IF(ISERROR(-(M61/('3. Cost_of_Service_Parameters'!K49*2)+MIN((M60/'3. Cost_of_Service_Parameters'!K49),(M60+M66)))), 0, -(M61/('3. Cost_of_Service_Parameters'!K49*2)+MIN((M60/'3. Cost_of_Service_Parameters'!K49),(M60+M66)))) -> 0 | O67: =IF(ISERROR(-(O61/('3. Cost_of_Service_Parameters'!M49*2)+MIN((O60/'3. Cost_of_Service_Parameters'!M49),(O60+O66)))), 0, -(O61/('3. Cost_of_Service_Parameters'!M49*2)+MIN((O60/'3. Cost_of_Service_Parameters'!M49),(O60+O66)))) -> 0 | Q67: =IF(ISERROR(-(Q61/('3. Cost_of_Service_Parameters'!O49*2)+MIN((Q60/'3. Cost_of_Service_Parameters'!O49),(Q60+Q66)))), 0, -(Q61/('3. Cost_of_Service_Parameters'!O49*2)+MIN((Q60/'3. Cost_of_Service_Parameters'!O49),(Q60+Q66)))) -> 0 | S67: =IF(ISERROR(-(S61/('3. Cost_of_Service_Parameters'!Q49*2)+MIN((S60/'3. Cost_of_Service_Parameters'!Q49),(S60+S66)))), 0, -(S61/('3. Cost_of_Service_Parameters'!Q49*2)+MIN((S60/'3. Cost_of_Service_Parameters'!Q49),(S60+S66)))) -> 0 | U67: =IF(ISERROR(-(U61/('3. Cost_of_Service_Parameters'!S49*2)+MIN((U60/'3. Cost_of_Service_Parameters'!S49),(U60+U66)))), 0, -(U61/('3. Cost_of_Service_Parameters'!S49*2)+MIN((U60/'3. Cost_of_Service_Parameters'!S49),(U60+U66)))) -> 0 | W67: =IF(ISERROR(-(W61/('3. Cost_of_Service_Parameters'!U49*2)+MIN((W60/'3. Cost_of_Service_Parameters'!U49),(W60+W66)))), 0, -(W61/('3. Cost_of_Service_Parameters'!U49*2)+MIN((W60/'3. Cost_of_Service_Parameters'!U49),(W60+W66)))) -> 0 | Y67: =IF(ISERROR(-(Y61/('3. Cost_of_Service_Parameters'!W49*2)+MIN((Y60/'3. Cost_of_Service_Parameters'!W49),(Y60+Y66)))), 0, -(Y61/('3. Cost_of_Service_Parameters'!W49*2)+MIN((Y60/'3. Cost_of_Service_Parameters'!W49),(Y60+Y66)))) -> 0
D68: Retirements/Removals (if applicable)
D69: Closing Balance | I69: =I66+I67-I68 -> 0 | K69: =K66+K67-K68 -> 0 | M69: =M66+M67-M68 -> 0 | O69: =O66+O67-O68 -> 0 | Q69: =Q66+Q67-Q68 -> 0 | S69: =S66+S67-S68 -> 0 | U69: =U66+U67-U68 -> 0 | W69: =W66+W67-W68 -> 0 | Y69: =Y66+Y67-Y68 -> 0
C71: Net Book Value
D72: Opening Balance | I72: =I60+I66 -> 0 | K72: =I73 -> 0 | M72: =K73 -> 0 | O72: =M73 -> 0 | Q72: =O73 -> 0 | S72: =Q73 -> 0 | U72: =S73 -> 0 | W72: =U73 -> 0 | Y72: =W73 -> 0
D73: Closing Balance | I73: =I63+I69 -> 0 | K73: =K63+K69 -> 0 | M73: =M63+M69 -> 0 | O73: =O63+O69 -> 0 | Q73: =Q63+Q69 -> 0 | S73: =S63+S69 -> 0 | U73: =U63+U69 -> 0 | W73: =W63+W69 -> 0 | Y73: =Y63+Y69 -> 0
D74: Incremental CAPEX | I74: =I73 -> 0 | K74: =AVERAGE(K72:K73) -> 0 | M74: =AVERAGE(M72:M73) -> 0 | O74: =AVERAGE(O72:O73) -> 0 | Q74: =AVERAGE(Q72:Q73) -> 0 | S74: =AVERAGE(S72:S73) -> 0 | U74: =AVERAGE(U72:U73) -> 0 | W74: =AVERAGE(W72:W73) -> 0 | Y74: =AVERAGE(Y72:Y73) -> 0
B76: Net Fixed Assets - OH Transformers
C78: Gross Book Value
D79: Opening Balance | K79: =I82 -> 1587359.62 | M79: =K82 -> 1587359.62 | O79: =M82 -> 1587359.62 | Q79: =O82 -> 1587359.62 | S79: =Q82 -> 1587359.62 | U79: =S82 -> 1587359.62 | W79: =U82 -> 1587359.62 | Y79: =W82 -> 1587359.62
D80: Capital Additions during year (from ICM Costs) | I80: ='2. ICM_Costs'!G188 -> 1587359.62
D81: Retirements/Removals (if applicable)
D82: Closing Balance | I82: =I79+I80-I81 -> 1587359.62 | K82: =K79+K80-K81 -> 1587359.62 | M82: =M79+M80-M81 -> 1587359.62 | O82: =O79+O80-O81 -> 1587359.62 | Q82: =Q79+Q80-Q81 -> 1587359.62 | S82: =S79+S80-S81 -> 1587359.62 | U82: =U79+U80-U81 -> 1587359.62 | W82: =W79+W80-W81 -> 1587359.62 | Y82: =Y79+Y80-Y81 -> 1587359.62
C84: Accumulated Depreciation
D85: Opening Balance | K85: =I88 -> -38716.08829 | M85: =K88 -> -77432.17659 | O85: =M88 -> -116148.2649 | Q85: =O88 -> -154864.3532 | S85: =Q88 -> -193580.4415 | U85: =S88 -> -232296.5298 | W85: =U88 -> -271012.618 | Y85: =W88 -> -306287.2763
D86: Amortization expense during year | I86: =IF(ISERROR(-(I80/('3. Cost_of_Service_Parameters'!G51)+MIN((I79/'3. Cost_of_Service_Parameters'!G51),(I79+I85)))), 0, -(I80/('3. Cost_of_Service_Parameters'!G51)+MIN((I79/'3. Cost_of_Service_Parameters'!G51),(I79+I85)))) -> -38716.08829 | K86: =IF(ISERROR(-(K80/('3. Cost_of_Service_Parameters'!I51*2)+MIN((K79/'3. Cost_of_Service_Parameters'!I51),(K79+K85)))), 0, -(K80/('3. Cost_of_Service_Parameters'!I51*2)+MIN((K79/'3. Cost_of_Service_Parameters'!I51),(K79+K85)))) -> -38716.08829 | M86: =IF(ISERROR(-(M80/('3. Cost_of_Service_Parameters'!K51*2)+MIN((M79/'3. Cost_of_Service_Parameters'!K51),(M79+M85)))), 0, -(M80/('3. Cost_of_Service_Parameters'!K51*2)+MIN((M79/'3. Cost_of_Service_Parameters'!K51),(M79+M85)))) -> -38716.08829 | O86: =IF(ISERROR(-(O80/('3. Cost_of_Service_Parameters'!M51*2)+MIN((O79/'3. Cost_of_Service_Parameters'!M51),(O79+O85)))), 0, -(O80/('3. Cost_of_Service_Parameters'!M51*2)+MIN((O79/'3. Cost_of_Service_Parameters'!M51),(O79+O85)))) -> -38716.08829 | Q86: =IF(ISERROR(-(Q80/('3. Cost_of_Service_Parameters'!O51*2)+MIN((Q79/'3. Cost_of_Service_Parameters'!O51),(Q79+Q85)))), 0, -(Q80/('3. Cost_of_Service_Parameters'!O51*2)+MIN((Q79/'3. Cost_of_Service_Parameters'!O51),(Q79+Q85)))) -> -38716.08829 | S86: =IF(ISERROR(-(S80/('3. Cost_of_Service_Parameters'!Q51*2)+MIN((S79/'3. Cost_of_Service_Parameters'!Q51),(S79+S85)))), 0, -(S80/('3. Cost_of_Service_Parameters'!Q51*2)+MIN((S79/'3. Cost_of_Service_Parameters'!Q51),(S79+S85)))) -> -38716.08829 | U86: =IF(ISERROR(-(U80/('3. Cost_of_Service_Parameters'!S51*2)+MIN((U79/'3. Cost_of_Service_Parameters'!S51),(U79+U85)))), 0, -(U80/('3. Cost_of_Service_Parameters'!S51*2)+MIN((U79/'3. Cost_of_Service_Parameters'!S51),(U79+U85)))) -> -38716.08829 | W86: =IF(ISERROR(-(W80/('3. Cost_of_Service_Parameters'!U51*2)+MIN((W79/'3. Cost_of_Service_Parameters'!U51),(W79+W85)))), 0, -(W80/('3. Cost_of_Service_Parameters'!U51*2)+MIN((W79/'3. Cost_of_Service_Parameters'!U51),(W79+W85)))) -> -35274.65822 | Y86: =IF(ISERROR(-(Y80/('3. Cost_of_Service_Parameters'!W51*2)+MIN((Y79/'3. Cost_of_Service_Parameters'!W51),(Y79+Y85)))), 0, -(Y80/('3. Cost_of_Service_Parameters'!W51*2)+MIN((Y79/'3. Cost_of_Service_Parameters'!W51),(Y79+Y85)))) -> -35274.65822
D87: Retirements/Removals (if applicable)
D88: Closing Balance | I88: =I85+I86-I87 -> -38716.08829 | K88: =K85+K86-K87 -> -77432.17659 | M88: =M85+M86-M87 -> -116148.2649 | O88: =O85+O86-O87 -> -154864.3532 | Q88: =Q85+Q86-Q87 -> -193580.4415 | S88: =S85+S86-S87 -> -232296.5298 | U88: =U85+U86-U87 -> -271012.618 | W88: =W85+W86-W87 -> -306287.2763 | Y88: =Y85+Y86-Y87 -> -341561.9345
C90: Net Book Value
D91: Opening Balance | I91: =I79+I85 -> 0 | K91: =I92 -> 1548643.532 | M91: =K92 -> 1509927.443 | O91: =M92 -> 1471211.355 | Q91: =O92 -> 1432495.267 | S91: =Q92 -> 1393779.179 | U91: =S92 -> 1355063.09 | W91: =U92 -> 1316347.002 | Y91: =W92 -> 1281072.344
D92: Closing Balance | I92: =I82+I88 -> 1548643.532 | K92: =K82+K88 -> 1509927.443 | M92: =M82+M88 -> 1471211.355 | O92: =O82+O88 -> 1432495.267 | Q92: =Q82+Q88 -> 1393779.179 | S92: =S82+S88 -> 1355063.09 | U92: =U82+U88 -> 1316347.002 | W92: =W82+W88 -> 1281072.344 | Y92: =Y82+Y88 -> 1245797.686
D93: Incremental CAPEX | I93: =I92 -> 1548643.532 | K93: =AVERAGE(K91:K92) -> 1529285.488 | M93: =AVERAGE(M91:M92) -> 1490569.399 | O93: =AVERAGE(O91:O92) -> 1451853.311 | Q93: =AVERAGE(Q91:Q92) -> 1413137.223 | S93: =AVERAGE(S91:S92) -> 1374421.134 | U93: =AVERAGE(U91:U92) -> 1335705.046 | W93: =AVERAGE(W91:W92) -> 1298709.673 | Y93: =AVERAGE(Y91:Y92) -> 1263435.015
B95: Net Fixed Assets - OH Prim Cond & Dev
C97: Gross Book Value
D98: Opening Balance | K98: =I101 -> 2381039.43 | M98: =K101 -> 2381039.43 | O98: =M101 -> 2381039.43 | Q98: =O101 -> 2381039.43 | S98: =Q101 -> 2381039.43 | U98: =S101 -> 2381039.43 | W98: =U101 -> 2381039.43 | Y98: =W101 -> 2381039.43
D99: Capital Additions during year (from ICM Costs) | I99: ='2. ICM_Costs'!G190 -> 2381039.43 | K99: ='2. ICM_Costs'!I190 -> 0
D100: Retirements/Removals (if applicable)
D101: Closing Balance | I101: =I98+I99-I100 -> 2381039.43 | K101: =K98+K99-K100 -> 2381039.43 | M101: =M98+M99-M100 -> 2381039.43 | O101: =O98+O99-O100 -> 2381039.43 | Q101: =Q98+Q99-Q100 -> 2381039.43 | S101: =S98+S99-S100 -> 2381039.43 | U101: =U98+U99-U100 -> 2381039.43 | W101: =W98+W99-W100 -> 2381039.43 | Y101: =Y98+Y99-Y100 -> 2381039.43
C103: Accumulated Depreciation
D104: Opening Balance | K104: =I107 -> -52911.98733 | M104: =K107 -> -105823.9747 | O104: =M107 -> -158735.962 | Q104: =O107 -> -211647.9493 | S104: =Q107 -> -264559.9367 | U104: =S107 -> -317471.924 | W104: =U107 -> -370383.9113 | Y104: =W107 -> -418004.6999
D105: Amortization expense during year | I105: =IF(ISERROR(-(I99/('3. Cost_of_Service_Parameters'!G53)+MIN((I98/'3. Cost_of_Service_Parameters'!G53),(I98+I104)))), 0, -(I99/('3. Cost_of_Service_Parameters'!G53)+MIN((I98/'3. Cost_of_Service_Parameters'!G53),(I98+I104)))) -> -52911.98733 | K105: =IF(ISERROR(-(K99/('3. Cost_of_Service_Parameters'!I53*2)+MIN((K98/'3. Cost_of_Service_Parameters'!I53),(K98+K104)))), 0, -(K99/('3. Cost_of_Service_Parameters'!I53*2)+MIN((K98/'3. Cost_of_Service_Parameters'!I53),(K98+K104)))) -> -52911.98733 | M105: =IF(ISERROR(-(M99/('3. Cost_of_Service_Parameters'!K53*2)+MIN((M98/'3. Cost_of_Service_Parameters'!K53),(M98+M104)))), 0, -(M99/('3. Cost_of_Service_Parameters'!K53*2)+MIN((M98/'3. Cost_of_Service_Parameters'!K53),(M98+M104)))) -> -52911.98733 | O105: =IF(ISERROR(-(O99/('3. Cost_of_Service_Parameters'!M53*2)+MIN((O98/'3. Cost_of_Service_Parameters'!M53),(O98+O104)))), 0, -(O99/('3. Cost_of_Service_Parameters'!M53*2)+MIN((O98/'3. Cost_of_Service_Parameters'!M53),(O98+O104)))) -> -52911.98733 | Q105: =IF(ISERROR(-(Q99/('3. Cost_of_Service_Parameters'!O53*2)+MIN((Q98/'3. Cost_of_Service_Parameters'!O53),(Q98+Q104)))), 0, -(Q99/('3. Cost_of_Service_Parameters'!O53*2)+MIN((Q98/'3. Cost_of_Service_Parameters'!O53),(Q98+Q104)))) -> -52911.98733 | S105: =IF(ISERROR(-(S99/('3. Cost_of_Service_Parameters'!Q53*2)+MIN((S98/'3. Cost_of_Service_Parameters'!Q53),(S98+S104)))), 0, -(S99/('3. Cost_of_Service_Parameters'!Q53*2)+MIN((S98/'3. Cost_of_Service_Parameters'!Q53),(S98+S104)))) -> -52911.98733 | U105: =IF(ISERROR(-(U99/('3. Cost_of_Service_Parameters'!S53*2)+MIN((U98/'3. Cost_of_Service_Parameters'!S53),(U98+U104)))), 0, -(U99/('3. Cost_of_Service_Parameters'!S53*2)+MIN((U98/'3. Cost_of_Service_Parameters'!S53),(U98+U104)))) -> -52911.98733 | W105: =IF(ISERROR(-(W99/('3. Cost_of_Service_Parameters'!U53*2)+MIN((W98/'3. Cost_of_Service_Parameters'!U53),(W98+W104)))), 0, -(W99/('3. Cost_of_Service_Parameters'!U53*2)+MIN((W98/'3. Cost_of_Service_Parameters'!U53),(W98+W104)))) -> -47620.7886 | Y105: =IF(ISERROR(-(Y99/('3. Cost_of_Service_Parameters'!W53*2)+MIN((Y98/'3. Cost_of_Service_Parameters'!W53),(Y98+Y104)))), 0, -(Y99/('3. Cost_of_Service_Parameters'!W53*2)+MIN((Y98/'3. Cost_of_Service_Parameters'!W53),(Y98+Y104)))) -> -47620.7886
D106: Retirements/Removals (if applicable)
D107: Closing Balance | I107: =I104+I105-I106 -> -52911.98733 | K107: =K104+K105-K106 -> -105823.9747 | M107: =M104+M105-M106 -> -158735.962 | O107: =O104+O105-O106 -> -211647.9493 | Q107: =Q104+Q105-Q106 -> -264559.9367 | S107: =S104+S105-S106 -> -317471.924 | U107: =U104+U105-U106 -> -370383.9113 | W107: =W104+W105-W106 -> -418004.6999 | Y107: =Y104+Y105-Y106 -> -465625.4885
C109: Net Book Value
D110: Opening Balance | I110: =I98+I104 -> 0 | K110: =I111 -> 2328127.443 | M110: =K111 -> 2275215.455 | O110: =M111 -> 2222303.468 | Q110: =O111 -> 2169391.481 | S110: =Q111 -> 2116479.493 | U110: =S111 -> 2063567.506 | W110: =U111 -> 2010655.519 | Y110: =W111 -> 1963034.73
D111: Closing Balance | I111: =I101+I107 -> 2328127.443 | K111: =K101+K107 -> 2275215.455 | M111: =M101+M107 -> 2222303.468 | O111: =O101+O107 -> 2169391.481 | Q111: =Q101+Q107 -> 2116479.493 | S111: =S101+S107 -> 2063567.506 | U111: =U101+U107 -> 2010655.519 | W111: =W101+W107 -> 1963034.73 | Y111: =Y101+Y107 -> 1915413.941
D112: Incremental CAPEX | I112: =I111 -> 2328127.443 | K112: =AVERAGE(K110:K111) -> 2301671.449 | M112: =AVERAGE(M110:M111) -> 2248759.462 | O112: =AVERAGE(O110:O111) -> 2195847.474 | Q112: =AVERAGE(Q110:Q111) -> 2142935.487 | S112: =AVERAGE(S110:S111) -> 2090023.5 | U112: =AVERAGE(U110:U111) -> 2037111.512 | W112: =AVERAGE(W110:W111) -> 1986845.124 | Y112: =AVERAGE(Y110:Y111) -> 1939224.336
B114: Net Fixed Assets - OH Sec Cond & Dev
C116: Gross Book Value
D117: Opening Balance | K117: =I120 -> 793679.81 | M117: =K120 -> 793679.81 | O117: =M120 -> 793679.81 | Q117: =O120 -> 793679.81 | S117: =Q120 -> 793679.81 | U117: =S120 -> 793679.81 | W117: =U120 -> 793679.81 | Y117: =W120 -> 793679.81
D118: Capital Additions during year (from ICM Costs) | I118: ='2. ICM_Costs'!G192 -> 793679.81 | K118: ='2. ICM_Costs'!I192 -> 0
D119: Retirements/Removals (if applicable)
D120: Closing Balance | I120: =I117+I118-I119 -> 793679.81 | K120: =K117+K118-K119 -> 793679.81 | M120: =M117+M118-M119 -> 793679.81 | O120: =O117+O118-O119 -> 793679.81 | Q120: =Q117+Q118-Q119 -> 793679.81 | S120: =S117+S118-S119 -> 793679.81 | U120: =U117+U118-U119 -> 793679.81 | W120: =W117+W118-W119 -> 793679.81 | Y120: =Y117+Y118-Y119 -> 793679.81
C122: Accumulated Depreciation
D123: Opening Balance | K123: =I126 -> -16534.99604 | M123: =K126 -> -33069.99208 | O123: =M126 -> -49604.98813 | Q123: =O126 -> -66139.98417 | S123: =Q126 -> -82674.98021 | U123: =S126 -> -99209.97625 | W123: =U126 -> -115744.9723 | Y123: =W126 -> -131618.5685
D124: Amortization expense during year | I124: =IF(ISERROR(-(I118/('3. Cost_of_Service_Parameters'!G55)+MIN((I117/'3. Cost_of_Service_Parameters'!G55),(I117+I123)))), 0, -(I118/('3. Cost_of_Service_Parameters'!G55)+MIN((I117/'3. Cost_of_Service_Parameters'!G55),(I117+I123)))) -> -16534.99604 | K124: =IF(ISERROR(-(K118/('3. Cost_of_Service_Parameters'!I55*2)+MIN((K117/'3. Cost_of_Service_Parameters'!I55),(K117+K123)))), 0, -(K118/('3. Cost_of_Service_Parameters'!I55*2)+MIN((K117/'3. Cost_of_Service_Parameters'!I55),(K117+K123)))) -> -16534.99604 | M124: =IF(ISERROR(-(M118/('3. Cost_of_Service_Parameters'!K55*2)+MIN((M117/'3. Cost_of_Service_Parameters'!K55),(M117+M123)))), 0, -(M118/('3. Cost_of_Service_Parameters'!K55*2)+MIN((M117/'3. Cost_of_Service_Parameters'!K55),(M117+M123)))) -> -16534.99604 | O124: =IF(ISERROR(-(O118/('3. Cost_of_Service_Parameters'!M55*2)+MIN((O117/'3. Cost_of_Service_Parameters'!M55),(O117+O123)))), 0, -(O118/('3. Cost_of_Service_Parameters'!M55*2)+MIN((O117/'3. Cost_of_Service_Parameters'!M55),(O117+O123)))) -> -16534.99604 | Q124: =IF(ISERROR(-(Q118/('3. Cost_of_Service_Parameters'!O55*2)+MIN((Q117/'3. Cost_of_Service_Parameters'!O55),(Q117+Q123)))), 0, -(Q118/('3. Cost_of_Service_Parameters'!O55*2)+MIN((Q117/'3. Cost_of_Service_Parameters'!O55),(Q117+Q123)))) -> -16534.99604 | S124: =IF(ISERROR(-(S118/('3. Cost_of_Service_Parameters'!Q55*2)+MIN((S117/'3. Cost_of_Service_Parameters'!Q55),(S117+S123)))), 0, -(S118/('3. Cost_of_Service_Parameters'!Q55*2)+MIN((S117/'3. Cost_of_Service_Parameters'!Q55),(S117+S123)))) -> -16534.99604 | U124: =IF(ISERROR(-(U118/('3. Cost_of_Service_Parameters'!S55*2)+MIN((U117/'3. Cost_of_Service_Parameters'!S55),(U117+U123)))), 0, -(U118/('3. Cost_of_Service_Parameters'!S55*2)+MIN((U117/'3. Cost_of_Service_Parameters'!S55),(U117+U123)))) -> -16534.99604 | W124: =IF(ISERROR(-(W118/('3. Cost_of_Service_Parameters'!U55*2)+MIN((W117/'3. Cost_of_Service_Parameters'!U55),(W117+W123)))), 0, -(W118/('3. Cost_of_Service_Parameters'!U55*2)+MIN((W117/'3. Cost_of_Service_Parameters'!U55),(W117+W123)))) -> -15873.5962 | Y124: =IF(ISERROR(-(Y118/('3. Cost_of_Service_Parameters'!W55*2)+MIN((Y117/'3. Cost_of_Service_Parameters'!W55),(Y117+Y123)))), 0, -(Y118/('3. Cost_of_Service_Parameters'!W55*2)+MIN((Y117/'3. Cost_of_Service_Parameters'!W55),(Y117+Y123)))) -> -15873.5962
D125: Retirements/Removals (if applicable)
D126: Closing Balance | I126: =I123+I124-I125 -> -16534.99604 | K126: =K123+K124-K125 -> -33069.99208 | M126: =M123+M124-M125 -> -49604.98813 | O126: =O123+O124-O125 -> -66139.98417 | Q126: =Q123+Q124-Q125 -> -82674.98021 | S126: =S123+S124-S125 -> -99209.97625 | U126: =U123+U124-U125 -> -115744.9723 | W126: =W123+W124-W125 -> -131618.5685 | Y126: =Y123+Y124-Y125 -> -147492.1647
C128: Net Book Value
D129: Opening Balance | I129: =I117+I123 -> 0 | K129: =I130 -> 777144.814 | M129: =K130 -> 760609.8179 | O129: =M130 -> 744074.8219 | Q129: =O130 -> 727539.8258 | S129: =Q130 -> 711004.8298 | U129: =S130 -> 694469.8338 | W129: =U130 -> 677934.8377 | Y129: =W130 -> 662061.2415
D130: Closing Balance | I130: =I120+I126 -> 777144.814 | K130: =K120+K126 -> 760609.8179 | M130: =M120+M126 -> 744074.8219 | O130: =O120+O126 -> 727539.8258 | Q130: =Q120+Q126 -> 711004.8298 | S130: =S120+S126 -> 694469.8338 | U130: =U120+U126 -> 677934.8377 | W130: =W120+W126 -> 662061.2415 | Y130: =Y120+Y126 -> 646187.6453
D131: Incremental CAPEX | I131: =I130 -> 777144.814 | K131: =AVERAGE(K129:K130) -> 768877.3159 | M131: =AVERAGE(M129:M130) -> 752342.3199 | O131: =AVERAGE(O129:O130) -> 735807.3239 | Q131: =AVERAGE(Q129:Q130) -> 719272.3278 | S131: =AVERAGE(S129:S130) -> 702737.3318 | U131: =AVERAGE(U129:U130) -> 686202.3357 | W131: =AVERAGE(W129:W130) -> 669998.0396 | Y131: =AVERAGE(Y129:Y130) -> 654124.4434
B133: Net Fixed Assets - UG Transformers
C135: Gross Book Value
D136: Opening Balance | K136: =I139 -> 0 | M136: =K139 -> 0 | O136: =M139 -> 0 | Q136: =O139 -> 0 | S136: =Q139 -> 0 | U136: =S139 -> 0 | W136: =U139 -> 0 | Y136: =W139 -> 0
D137: Capital Additions during year (from ICM Costs) | I137: ='2. ICM_Costs'!G194 -> 0 | K137: ='2. ICM_Costs'!I194 -> 0
D138: Retirements/Removals (if applicable)
D139: Closing Balance | I139: =I136+I137-I138 -> 0 | K139: =K136+K137-K138 -> 0 | M139: =M136+M137-M138 -> 0 | O139: =O136+O137-O138 -> 0 | Q139: =Q136+Q137-Q138 -> 0 | S139: =S136+S137-S138 -> 0 | U139: =U136+U137-U138 -> 0 | W139: =W136+W137-W138 -> 0 | Y139: =Y136+Y137-Y138 -> 0
C141: Accumulated Depreciation
D142: Opening Balance | K142: =I145 -> 0 | M142: =K145 -> 0 | O142: =M145 -> 0 | Q142: =O145 -> 0 | S142: =Q145 -> 0 | U142: =S145 -> 0 | W142: =U145 -> 0 | Y142: =W145 -> 0
D143: Amortization expense during year | I143: =IF(ISERROR(-(I137/('3. Cost_of_Service_Parameters'!G57)+MIN((I136/'3. Cost_of_Service_Parameters'!G57),(I136+I142)))), 0, -(I137/('3. Cost_of_Service_Parameters'!G57)+MIN((I136/'3. Cost_of_Service_Parameters'!G57),(I136+I142)))) -> 0 | K143: =IF(ISERROR(-(K137/('3. Cost_of_Service_Parameters'!I57*2)+MIN((K136/'3. Cost_of_Service_Parameters'!I57),(K136+K142)))), 0, -(K137/('3. Cost_of_Service_Parameters'!I57*2)+MIN((K136/'3. Cost_of_Service_Parameters'!I57),(K136+K142)))) -> 0 | M143: =IF(ISERROR(-(M137/('3. Cost_of_Service_Parameters'!K57*2)+MIN((M136/'3. Cost_of_Service_Parameters'!K57),(M136+M142)))), 0, -(M137/('3. Cost_of_Service_Parameters'!K57*2)+MIN((M136/'3. Cost_of_Service_Parameters'!K57),(M136+M142)))) -> 0 | O143: =IF(ISERROR(-(O137/('3. Cost_of_Service_Parameters'!M57*2)+MIN((O136/'3. Cost_of_Service_Parameters'!M57),(O136+O142)))), 0, -(O137/('3. Cost_of_Service_Parameters'!M57*2)+MIN((O136/'3. Cost_of_Service_Parameters'!M57),(O136+O142)))) -> 0 | Q143: =IF(ISERROR(-(Q137/('3. Cost_of_Service_Parameters'!O57*2)+MIN((Q136/'3. Cost_of_Service_Parameters'!O57),(Q136+Q142)))), 0, -(Q137/('3. Cost_of_Service_Parameters'!O57*2)+MIN((Q136/'3. Cost_of_Service_Parameters'!O57),(Q136+Q142)))) -> 0 | S143: =IF(ISERROR(-(S137/('3. Cost_of_Service_Parameters'!Q57*2)+MIN((S136/'3. Cost_of_Service_Parameters'!Q57),(S136+S142)))), 0, -(S137/('3. Cost_of_Service_Parameters'!Q57*2)+MIN((S136/'3. Cost_of_Service_Parameters'!Q57),(S136+S142)))) -> 0 | U143: =IF(ISERROR(-(U137/('3. Cost_of_Service_Parameters'!S57*2)+MIN((U136/'3. Cost_of_Service_Parameters'!S57),(U136+U142)))), 0, -(U137/('3. Cost_of_Service_Parameters'!S57*2)+MIN((U136/'3. Cost_of_Service_Parameters'!S57),(U136+U142)))) -> 0 | W143: =IF(ISERROR(-(W137/('3. Cost_of_Service_Parameters'!U57*2)+MIN((W136/'3. Cost_of_Service_Parameters'!U57),(W136+W142)))), 0, -(W137/('3. Cost_of_Service_Parameters'!U57*2)+MIN((W136/'3. Cost_of_Service_Parameters'!U57),(W136+W142)))) -> 0 | Y143: =IF(ISERROR(-(Y137/('3. Cost_of_Service_Parameters'!W57*2)+MIN((Y136/'3. Cost_of_Service_Parameters'!W57),(Y136+Y142)))), 0, -(Y137/('3. Cost_of_Service_Parameters'!W57*2)+MIN((Y136/'3. Cost_of_Service_Parameters'!W57),(Y136+Y142)))) -> 0
D144: Retirements/Removals (if applicable)
D145: Closing Balance | I145: =I142+I143-I144 -> 0 | K145: =K142+K143-K144 -> 0 | M145: =M142+M143-M144 -> 0 | O145: =O142+O143-O144 -> 0 | Q145: =Q142+Q143-Q144 -> 0 | S145: =S142+S143-S144 -> 0 | U145: =U142+U143-U144 -> 0 | W145: =W142+W143-W144 -> 0 | Y145: =Y142+Y143-Y144 -> 0
C147: Net Book Value
D148: Opening Balance | I148: =I136+I142 -> 0 | K148: =I149 -> 0 | M148: =K149 -> 0 | O148: =M149 -> 0 | Q148: =O149 -> 0 | S148: =Q149 -> 0 | U148: =S149 -> 0 | W148: =U149 -> 0 | Y148: =W149 -> 0
D149: Closing Balance | I149: =I139+I145 -> 0 | K149: =K139+K145 -> 0 | M149: =M139+M145 -> 0 | O149: =O139+O145 -> 0 | Q149: =Q139+Q145 -> 0 | S149: =S139+S145 -> 0 | U149: =U139+U145 -> 0 | W149: =W139+W145 -> 0 | Y149: =Y139+Y145 -> 0
D150: Incremental CAPEX | I150: =I149 -> 0 | K150: =AVERAGE(K148:K149) -> 0 | M150: =AVERAGE(M148:M149) -> 0 | O150: =AVERAGE(O148:O149) -> 0 | Q150: =AVERAGE(Q148:Q149) -> 0 | S150: =AVERAGE(S148:S149) -> 0 | U150: =AVERAGE(U148:U149) -> 0 | W150: =AVERAGE(W148:W149) -> 0 | Y150: =AVERAGE(Y148:Y149) -> 0
B152: Net Fixed Assets - UG Conduit
C154: Gross Book Value
D155: Opening Balance | K155: =I158 -> 0 | M155: =K158 -> 0 | O155: =M158 -> 0 | Q155: =O158 -> 0 | S155: =Q158 -> 0 | U155: =S158 -> 0 | W155: =U158 -> 0 | Y155: =W158 -> 0
D156: Capital Additions during year (from ICM Costs) | I156: ='2. ICM_Costs'!G196 -> 0 | K156: ='2. ICM_Costs'!I196 -> 0
D157: Retirements/Removals (if applicable)
D158: Closing Balance | I158: =I155+I156-I157 -> 0 | K158: =K155+K156-K157 -> 0 | M158: =M155+M156-M157 -> 0 | O158: =O155+O156-O157 -> 0 | Q158: =Q155+Q156-Q157 -> 0 | S158: =S155+S156-S157 -> 0 | U158: =U155+U156-U157 -> 0 | W158: =W155+W156-W157 -> 0 | Y158: =Y155+Y156-Y157 -> 0
C160: Accumulated Depreciation
D161: Opening Balance | K161: =I164 -> 0 | M161: =K164 -> 0 | O161: =M164 -> 0 | Q161: =O164 -> 0 | S161: =Q164 -> 0 | U161: =S164 -> 0 | W161: =U164 -> 0 | Y161: =W164 -> 0
D162: Amortization expense during year | I162: =IF(ISERROR(-(I156/('3. Cost_of_Service_Parameters'!G59)+MIN((I155/'3. Cost_of_Service_Parameters'!G59),(I155+I161)))), 0, -(I156/('3. Cost_of_Service_Parameters'!G59)+MIN((I155/'3. Cost_of_Service_Parameters'!G59),(I155+I161)))) -> 0 | K162: =IF(ISERROR(-(K156/('3. Cost_of_Service_Parameters'!I59*2)+MIN((K155/'3. Cost_of_Service_Parameters'!I59),(K155+K161)))), 0, -(K156/('3. Cost_of_Service_Parameters'!I59*2)+MIN((K155/'3. Cost_of_Service_Parameters'!I59),(K155+K161)))) -> 0 | M162: =IF(ISERROR(-(M156/('3. Cost_of_Service_Parameters'!K59*2)+MIN((M155/'3. Cost_of_Service_Parameters'!K59),(M155+M161)))), 0, -(M156/('3. Cost_of_Service_Parameters'!K59*2)+MIN((M155/'3. Cost_of_Service_Parameters'!K59),(M155+M161)))) -> 0 | O162: =IF(ISERROR(-(O156/('3. Cost_of_Service_Parameters'!M59*2)+MIN((O155/'3. Cost_of_Service_Parameters'!M59),(O155+O161)))), 0, -(O156/('3. Cost_of_Service_Parameters'!M59*2)+MIN((O155/'3. Cost_of_Service_Parameters'!M59),(O155+O161)))) -> 0 | Q162: =IF(ISERROR(-(Q156/('3. Cost_of_Service_Parameters'!O59*2)+MIN((Q155/'3. Cost_of_Service_Parameters'!O59),(Q155+Q161)))), 0, -(Q156/('3. Cost_of_Service_Parameters'!O59*2)+MIN((Q155/'3. Cost_of_Service_Parameters'!O59),(Q155+Q161)))) -> 0 | S162: =IF(ISERROR(-(S156/('3. Cost_of_Service_Parameters'!Q59*2)+MIN((S155/'3. Cost_of_Service_Parameters'!Q59),(S155+S161)))), 0, -(S156/('3. Cost_of_Service_Parameters'!Q59*2)+MIN((S155/'3. Cost_of_Service_Parameters'!Q59),(S155+S161)))) -> 0 | U162: =IF(ISERROR(-(U156/('3. Cost_of_Service_Parameters'!S59*2)+MIN((U155/'3. Cost_of_Service_Parameters'!S59),(U155+U161)))), 0, -(U156/('3. Cost_of_Service_Parameters'!S59*2)+MIN((U155/'3. Cost_of_Service_Parameters'!S59),(U155+U161)))) -> 0 | W162: =IF(ISERROR(-(W156/('3. Cost_of_Service_Parameters'!U59*2)+MIN((W155/'3. Cost_of_Service_Parameters'!U59),(W155+W161)))), 0, -(W156/('3. Cost_of_Service_Parameters'!U59*2)+MIN((W155/'3. Cost_of_Service_Parameters'!U59),(W155+W161)))) -> 0 | Y162: =IF(ISERROR(-(Y156/('3. Cost_of_Service_Parameters'!W59*2)+MIN((Y155/'3. Cost_of_Service_Parameters'!W59),(Y155+Y161)))), 0, -(Y156/('3. Cost_of_Service_Parameters'!W59*2)+MIN((Y155/'3. Cost_of_Service_Parameters'!W59),(Y155+Y161)))) -> 0
D163: Retirements/Removals (if applicable)
D164: Closing Balance | I164: =I161+I162-I163 -> 0 | K164: =K161+K162-K163 -> 0 | M164: =M161+M162-M163 -> 0 | O164: =O161+O162-O163 -> 0 | Q164: =Q161+Q162-Q163 -> 0 | S164: =S161+S162-S163 -> 0 | U164: =U161+U162-U163 -> 0 | W164: =W161+W162-W163 -> 0 | Y164: =Y161+Y162-Y163 -> 0
C166: Net Book Value
D167: Opening Balance | I167: =I155+I161 -> 0 | K167: =I168 -> 0 | M167: =K168 -> 0 | O167: =M168 -> 0 | Q167: =O168 -> 0 | S167: =Q168 -> 0 | U167: =S168 -> 0 | W167: =U168 -> 0 | Y167: =W168 -> 0
D168: Closing Balance | I168: =I158+I164 -> 0 | K168: =K158+K164 -> 0 | M168: =M158+M164 -> 0 | O168: =O158+O164 -> 0 | Q168: =Q158+Q164 -> 0 | S168: =S158+S164 -> 0 | U168: =U158+U164 -> 0 | W168: =W158+W164 -> 0 | Y168: =Y158+Y164 -> 0
D169: Incremental CAPEX | I169: =I168 -> 0 | K169: =AVERAGE(K167:K168) -> 0 | M169: =AVERAGE(M167:M168) -> 0 | O169: =AVERAGE(O167:O168) -> 0 | Q169: =AVERAGE(Q167:Q168) -> 0 | S169: =AVERAGE(S167:S168) -> 0 | U169: =AVERAGE(U167:U168) -> 0 | W169: =AVERAGE(W167:W168) -> 0 | Y169: =AVERAGE(Y167:Y168) -> 0
B171: Net Fixed Assets - UG Prim XLPE TR
C173: Gross Book Value
D174: Opening Balance | K174: =I177 -> 476207.886 | M174: =K177 -> 476207.886 | O174: =M177 -> 476207.886 | Q174: =O177 -> 476207.886 | S174: =Q177 -> 476207.886 | U174: =S177 -> 476207.886 | W174: =U177 -> 476207.886 | Y174: =W177 -> 476207.886
D175: Capital Additions during year (from ICM Costs) | I175: ='2. ICM_Costs'!G198 -> 476207.886 | K175: ='2. ICM_Costs'!I198 -> 0
D176: Retirements/Removals (if applicable)
D177: Closing Balance | I177: =I174+I175-I176 -> 476207.886 | K177: =K174+K175-K176 -> 476207.886 | M177: =M174+M175-M176 -> 476207.886 | O177: =O174+O175-O176 -> 476207.886 | Q177: =Q174+Q175-Q176 -> 476207.886 | S177: =S174+S175-S176 -> 476207.886 | U177: =U174+U175-U176 -> 476207.886 | W177: =W174+W175-W176 -> 476207.886 | Y177: =Y174+Y175-Y176 -> 476207.886
C179: Accumulated Depreciation
D180: Opening Balance | K180: =I183 -> -12531.78647 | M180: =K183 -> -25063.57295 | O180: =M183 -> -37595.35942 | Q180: =O183 -> -50127.14589 | S180: =Q183 -> -62658.93237 | U180: =S183 -> -75190.71884 | W180: =U183 -> -87722.50532 | Y180: =W183 -> -98304.90278
D181: Amortization expense during year | I181: =IF(ISERROR(-(I175/('3. Cost_of_Service_Parameters'!G61)+MIN((I174/'3. Cost_of_Service_Parameters'!G61),(I174+I180)))), 0, -(I175/('3. Cost_of_Service_Parameters'!G61)+MIN((I174/'3. Cost_of_Service_Parameters'!G61),(I174+I180)))) -> -12531.78647 | K181: =IF(ISERROR(-(K175/('3. Cost_of_Service_Parameters'!I61*2)+MIN((K174/'3. Cost_of_Service_Parameters'!I61),(K174+K180)))), 0, -(K175/('3. Cost_of_Service_Parameters'!I61*2)+MIN((K174/'3. Cost_of_Service_Parameters'!I61),(K174+K180)))) -> -12531.78647 | M181: =IF(ISERROR(-(M175/('3. Cost_of_Service_Parameters'!K61*2)+MIN((M174/'3. Cost_of_Service_Parameters'!K61),(M174+M180)))), 0, -(M175/('3. Cost_of_Service_Parameters'!K61*2)+MIN((M174/'3. Cost_of_Service_Parameters'!K61),(M174+M180)))) -> -12531.78647 | O181: =IF(ISERROR(-(O175/('3. Cost_of_Service_Parameters'!M61*2)+MIN((O174/'3. Cost_of_Service_Parameters'!M61),(O174+O180)))), 0, -(O175/('3. Cost_of_Service_Parameters'!M61*2)+MIN((O174/'3. Cost_of_Service_Parameters'!M61),(O174+O180)))) -> -12531.78647 | Q181: =IF(ISERROR(-(Q175/('3. Cost_of_Service_Parameters'!O61*2)+MIN((Q174/'3. Cost_of_Service_Parameters'!O61),(Q174+Q180)))), 0, -(Q175/('3. Cost_of_Service_Parameters'!O61*2)+MIN((Q174/'3. Cost_of_Service_Parameters'!O61),(Q174+Q180)))) -> -12531.78647 | S181: =IF(ISERROR(-(S175/('3. Cost_of_Service_Parameters'!Q61*2)+MIN((S174/'3. Cost_of_Service_Parameters'!Q61),(S174+S180)))), 0, -(S175/('3. Cost_of_Service_Parameters'!Q61*2)+MIN((S174/'3. Cost_of_Service_Parameters'!Q61),(S174+S180)))) -> -12531.78647 | U181: =IF(ISERROR(-(U175/('3. Cost_of_Service_Parameters'!S61*2)+MIN((U174/'3. Cost_of_Service_Parameters'!S61),(U174+U180)))), 0, -(U175/('3. Cost_of_Service_Parameters'!S61*2)+MIN((U174/'3. Cost_of_Service_Parameters'!S61),(U174+U180)))) -> -12531.78647 | W181: =IF(ISERROR(-(W175/('3. Cost_of_Service_Parameters'!U61*2)+MIN((W174/'3. Cost_of_Service_Parameters'!U61),(W174+W180)))), 0, -(W175/('3. Cost_of_Service_Parameters'!U61*2)+MIN((W174/'3. Cost_of_Service_Parameters'!U61),(W174+W180)))) -> -10582.39747 | Y181: =IF(ISERROR(-(Y175/('3. Cost_of_Service_Parameters'!W61*2)+MIN((Y174/'3. Cost_of_Service_Parameters'!W61),(Y174+Y180)))), 0, -(Y175/('3. Cost_of_Service_Parameters'!W61*2)+MIN((Y174/'3. Cost_of_Service_Parameters'!W61),(Y174+Y180)))) -> -10582.39747
D182: Retirements/Removals (if applicable)
D183: Closing Balance | I183: =I180+I181-I182 -> -12531.78647 | K183: =K180+K181-K182 -> -25063.57295 | M183: =M180+M181-M182 -> -37595.35942 | O183: =O180+O181-O182 -> -50127.14589 | Q183: =Q180+Q181-Q182 -> -62658.93237 | S183: =S180+S181-S182 -> -75190.71884 | U183: =U180+U181-U182 -> -87722.50532 | W183: =W180+W181-W182 -> -98304.90278 | Y183: =Y180+Y181-Y182 -> -108887.3002
C185: Net Book Value
D186: Opening Balance | I186: =I174+I180 -> 0 | K186: =I187 -> 463676.0995 | M186: =K187 -> 451144.3131 | O186: =M187 -> 438612.5266 | Q186: =O187 -> 426080.7401 | S186: =Q187 -> 413548.9536 | U186: =S187 -> 401017.1672 | W186: =U187 -> 388485.3807 | Y186: =W187 -> 377902.9832
D187: Closing Balance | I187: =I177+I183 -> 463676.0995 | K187: =K177+K183 -> 451144.3131 | M187: =M177+M183 -> 438612.5266 | O187: =O177+O183 -> 426080.7401 | Q187: =Q177+Q183 -> 413548.9536 | S187: =S177+S183 -> 401017.1672 | U187: =U177+U183 -> 388485.3807 | W187: =W177+W183 -> 377902.9832 | Y187: =Y177+Y183 -> 367320.5858
D188: Incremental CAPEX | I188: =I187 -> 463676.0995 | K188: =AVERAGE(K186:K187) -> 457410.2063 | M188: =AVERAGE(M186:M187) -> 444878.4198 | O188: =AVERAGE(O186:O187) -> 432346.6333 | Q188: =AVERAGE(Q186:Q187) -> 419814.8469 | S188: =AVERAGE(S186:S187) -> 407283.0604 | U188: =AVERAGE(U186:U187) -> 394751.2739 | W188: =AVERAGE(W186:W187) -> 383194.182 | Y188: =AVERAGE(Y186:Y187) -> 372611.7845
B191: Net Fixed Assets - UG Sec - Dir Buried
C193: Gross Book Value
D194: Opening Balance | K194: =I197 -> 476207.886 | M194: =K197 -> 476207.886 | O194: =M197 -> 476207.886 | Q194: =O197 -> 476207.886 | S194: =Q197 -> 476207.886 | U194: =S197 -> 476207.886 | W194: =U197 -> 476207.886 | Y194: =W197 -> 476207.886
D195: Capital Additions during year (from ICM Costs) | I195: ='2. ICM_Costs'!G200 -> 476207.886 | K195: ='2. ICM_Costs'!I226 -> 0
D196: Retirements/Removals (if applicable)
D197: Closing Balance | I197: =I194+I195-I196 -> 476207.886 | K197: =K194+K195-K196 -> 476207.886 | M197: =M194+M195-M196 -> 476207.886 | O197: =O194+O195-O196 -> 476207.886 | Q197: =Q194+Q195-Q196 -> 476207.886 | S197: =S194+S195-S196 -> 476207.886 | U197: =U194+U195-U196 -> 476207.886 | W197: =W194+W195-W196 -> 476207.886 | Y197: =Y194+Y195-Y196 -> 476207.886
C199: Accumulated Depreciation
D200: Opening Balance | K200: =I203 -> -15361.54471 | M200: =K203 -> -30723.08942 | O200: =M203 -> -46084.63413 | Q200: =O203 -> -61446.17884 | S200: =Q203 -> -76807.72355 | U200: =S203 -> -92169.26826 | W200: =U203 -> -107530.813 | Y200: =W203 -> -123404.4092
D201: Amortization expense during year | I201: =IF(ISERROR(-(I195/('3. Cost_of_Service_Parameters'!G63)+MIN((I194/'3. Cost_of_Service_Parameters'!G63),(I194+I200)))), 0, -(I195/('3. Cost_of_Service_Parameters'!G63)+MIN((I194/'3. Cost_of_Service_Parameters'!G63),(I194+I200)))) -> -15361.54471 | K201: =IF(ISERROR(-(K195/('3. Cost_of_Service_Parameters'!I63*2)+MIN((K194/'3. Cost_of_Service_Parameters'!I63),(K194+K200)))), 0, -(K195/('3. Cost_of_Service_Parameters'!I63*2)+MIN((K194/'3. Cost_of_Service_Parameters'!I63),(K194+K200)))) -> -15361.54471 | M201: =IF(ISERROR(-(M195/('3. Cost_of_Service_Parameters'!K63*2)+MIN((M194/'3. Cost_of_Service_Parameters'!K63),(M194+M200)))), 0, -(M195/('3. Cost_of_Service_Parameters'!K63*2)+MIN((M194/'3. Cost_of_Service_Parameters'!K63),(M194+M200)))) -> -15361.54471 | O201: =IF(ISERROR(-(O195/('3. Cost_of_Service_Parameters'!M63*2)+MIN((O194/'3. Cost_of_Service_Parameters'!M63),(O194+O200)))), 0, -(O195/('3. Cost_of_Service_Parameters'!M63*2)+MIN((O194/'3. Cost_of_Service_Parameters'!M63),(O194+O200)))) -> -15361.54471 | Q201: =IF(ISERROR(-(Q195/('3. Cost_of_Service_Parameters'!O63*2)+MIN((Q194/'3. Cost_of_Service_Parameters'!O63),(Q194+Q200)))), 0, -(Q195/('3. Cost_of_Service_Parameters'!O63*2)+MIN((Q194/'3. Cost_of_Service_Parameters'!O63),(Q194+Q200)))) -> -15361.54471 | S201: =IF(ISERROR(-(S195/('3. Cost_of_Service_Parameters'!Q63*2)+MIN((S194/'3. Cost_of_Service_Parameters'!Q63),(S194+S200)))), 0, -(S195/('3. Cost_of_Service_Parameters'!Q63*2)+MIN((S194/'3. Cost_of_Service_Parameters'!Q63),(S194+S200)))) -> -15361.54471 | U201: =IF(ISERROR(-(U195/('3. Cost_of_Service_Parameters'!S63*2)+MIN((U194/'3. Cost_of_Service_Parameters'!S63),(U194+U200)))), 0, -(U195/('3. Cost_of_Service_Parameters'!S63*2)+MIN((U194/'3. Cost_of_Service_Parameters'!S63),(U194+U200)))) -> -15361.54471 | W201: =IF(ISERROR(-(W195/('3. Cost_of_Service_Parameters'!U63*2)+MIN((W194/'3. Cost_of_Service_Parameters'!U63),(W194+W200)))), 0, -(W195/('3. Cost_of_Service_Parameters'!U63*2)+MIN((W194/'3. Cost_of_Service_Parameters'!U63),(W194+W200)))) -> -15873.5962 | Y201: =IF(ISERROR(-(Y195/('3. Cost_of_Service_Parameters'!W63*2)+MIN((Y194/'3. Cost_of_Service_Parameters'!W63),(Y194+Y200)))), 0, -(Y195/('3. Cost_of_Service_Parameters'!W63*2)+MIN((Y194/'3. Cost_of_Service_Parameters'!W63),(Y194+Y200)))) -> -15873.5962
D202: Retirements/Removals (if applicable)
D203: Closing Balance | I203: =I200+I201-I202 -> -15361.54471 | K203: =K200+K201-K202 -> -30723.08942 | M203: =M200+M201-M202 -> -46084.63413 | O203: =O200+O201-O202 -> -61446.17884 | Q203: =Q200+Q201-Q202 -> -76807.72355 | S203: =S200+S201-S202 -> -92169.26826 | U203: =U200+U201-U202 -> -107530.813 | W203: =W200+W201-W202 -> -123404.4092 | Y203: =Y200+Y201-Y202 -> -139278.0054
C205: Net Book Value
D206: Opening Balance | I206: =I194+I200 -> 0 | K206: =I207 -> 460846.3413 | M206: =K207 -> 445484.7966 | O206: =M207 -> 430123.2519 | Q206: =O207 -> 414761.7072 | S206: =Q207 -> 399400.1625 | U206: =S207 -> 384038.6177 | W206: =U207 -> 368677.073 | Y206: =W207 -> 352803.4768
D207: Closing Balance | I207: =I197+I203 -> 460846.3413 | K207: =K197+K203 -> 445484.7966 | M207: =M197+M203 -> 430123.2519 | O207: =O197+O203 -> 414761.7072 | Q207: =Q197+Q203 -> 399400.1625 | S207: =S197+S203 -> 384038.6177 | U207: =U197+U203 -> 368677.073 | W207: =W197+W203 -> 352803.4768 | Y207: =Y197+Y203 -> 336929.8806
D208: Incremental CAPEX | I208: =I207 -> 460846.3413 | K208: =AVERAGE(K206:K207) -> 453165.5689 | M208: =AVERAGE(M206:M207) -> 437804.0242 | O208: =AVERAGE(O206:O207) -> 422442.4795 | Q208: =AVERAGE(Q206:Q207) -> 407080.9348 | S208: =AVERAGE(S206:S207) -> 391719.3901 | U208: =AVERAGE(U206:U207) -> 376357.8454 | W208: =AVERAGE(W206:W207) -> 360740.2749 | Y208: =AVERAGE(Y206:Y207) -> 344866.6787
B211: Net Fixed Assets - UG Sec In Duct/Svs
C213: Gross Book Value
D214: Opening Balance | K214: =I217 -> 0 | M214: =K217 -> 0 | O214: =M217 -> 0 | Q214: =O217 -> 0 | S214: =Q217 -> 0 | U214: =S217 -> 0 | W214: =U217 -> 0 | Y214: =W217 -> 0
D215: Capital Additions during year (from ICM Costs) | I215: ='2. ICM_Costs'!G202 -> 0 | K215: ='2. ICM_Costs'!I246 -> 0
D216: Retirements/Removals (if applicable)
D217: Closing Balance | I217: =I214+I215-I216 -> 0 | K217: =K214+K215-K216 -> 0 | M217: =M214+M215-M216 -> 0 | O217: =O214+O215-O216 -> 0 | Q217: =Q214+Q215-Q216 -> 0 | S217: =S214+S215-S216 -> 0 | U217: =U214+U215-U216 -> 0 | W217: =W214+W215-W216 -> 0 | Y217: =Y214+Y215-Y216 -> 0
C219: Accumulated Depreciation
D220: Opening Balance | K220: =I223 -> 0 | M220: =K223 -> 0 | O220: =M223 -> 0 | Q220: =O223 -> 0 | S220: =Q223 -> 0 | U220: =S223 -> 0 | W220: =U223 -> 0 | Y220: =W223 -> 0
D221: Amortization expense during year | I221: =IF(ISERROR(-(I215/('3. Cost_of_Service_Parameters'!G65)+MIN((I214/'3. Cost_of_Service_Parameters'!G65),(I214+I220)))), 0, -(I215/('3. Cost_of_Service_Parameters'!G65)+MIN((I214/'3. Cost_of_Service_Parameters'!G65),(I214+I220)))) -> 0 | K221: =IF(ISERROR(-(K215/('3. Cost_of_Service_Parameters'!I65*2)+MIN((K214/'3. Cost_of_Service_Parameters'!I65),(K214+K220)))), 0, -(K215/('3. Cost_of_Service_Parameters'!I65*2)+MIN((K214/'3. Cost_of_Service_Parameters'!I65),(K214+K220)))) -> 0 | M221: =IF(ISERROR(-(M215/('3. Cost_of_Service_Parameters'!K65*2)+MIN((M214/'3. Cost_of_Service_Parameters'!K65),(M214+M220)))), 0, -(M215/('3. Cost_of_Service_Parameters'!K65*2)+MIN((M214/'3. Cost_of_Service_Parameters'!K65),(M214+M220)))) -> 0 | O221: =IF(ISERROR(-(O215/('3. Cost_of_Service_Parameters'!M65*2)+MIN((O214/'3. Cost_of_Service_Parameters'!M65),(O214+O220)))), 0, -(O215/('3. Cost_of_Service_Parameters'!M65*2)+MIN((O214/'3. Cost_of_Service_Parameters'!M65),(O214+O220)))) -> 0 | Q221: =IF(ISERROR(-(Q215/('3. Cost_of_Service_Parameters'!O65*2)+MIN((Q214/'3. Cost_of_Service_Parameters'!O65),(Q214+Q220)))), 0, -(Q215/('3. Cost_of_Service_Parameters'!O65*2)+MIN((Q214/'3. Cost_of_Service_Parameters'!O65),(Q214+Q220)))) -> 0 | S221: =IF(ISERROR(-(S215/('3. Cost_of_Service_Parameters'!Q65*2)+MIN((S214/'3. Cost_of_Service_Parameters'!Q65),(S214+S220)))), 0, -(S215/('3. Cost_of_Service_Parameters'!Q65*2)+MIN((S214/'3. Cost_of_Service_Parameters'!Q65),(S214+S220)))) -> 0 | U221: =IF(ISERROR(-(U215/('3. Cost_of_Service_Parameters'!S65*2)+MIN((U214/'3. Cost_of_Service_Parameters'!S65),(U214+U220)))), 0, -(U215/('3. Cost_of_Service_Parameters'!S65*2)+MIN((U214/'3. Cost_of_Service_Parameters'!S65),(U214+U220)))) -> 0 | W221: =IF(ISERROR(-(W215/('3. Cost_of_Service_Parameters'!U65*2)+MIN((W214/'3. Cost_of_Service_Parameters'!U65),(W214+W220)))), 0, -(W215/('3. Cost_of_Service_Parameters'!U65*2)+MIN((W214/'3. Cost_of_Service_Parameters'!U65),(W214+W220)))) -> 0 | Y221: =IF(ISERROR(-(Y215/('3. Cost_of_Service_Parameters'!W65*2)+MIN((Y214/'3. Cost_of_Service_Parameters'!W65),(Y214+Y220)))), 0, -(Y215/('3. Cost_of_Service_Parameters'!W65*2)+MIN((Y214/'3. Cost_of_Service_Parameters'!W65),(Y214+Y220)))) -> 0
D222: Retirements/Removals (if applicable)
D223: Closing Balance | I223: =I220+I221-I222 -> 0 | K223: =K220+K221-K222 -> 0 | M223: =M220+M221-M222 -> 0 | O223: =O220+O221-O222 -> 0 | Q223: =Q220+Q221-Q222 -> 0 | S223: =S220+S221-S222 -> 0 | U223: =U220+U221-U222 -> 0 | W223: =W220+W221-W222 -> 0 | Y223: =Y220+Y221-Y222 -> 0
C225: Net Book Value
D226: Opening Balance | I226: =I214+I220 -> 0 | K226: =I227 -> 0 | M226: =K227 -> 0 | O226: =M227 -> 0 | Q226: =O227 -> 0 | S226: =Q227 -> 0 | U226: =S227 -> 0 | W226: =U227 -> 0 | Y226: =W227 -> 0
D227: Closing Balance | I227: =I217+I223 -> 0 | K227: =K217+K223 -> 0 | M227: =M217+M223 -> 0 | O227: =O217+O223 -> 0 | Q227: =Q217+Q223 -> 0 | S227: =S217+S223 -> 0 | U227: =U217+U223 -> 0 | W227: =W217+W223 -> 0 | Y227: =Y217+Y223 -> 0
D228: Incremental CAPEX | I228: =I227 -> 0 | K228: =AVERAGE(K226:K227) -> 0 | M228: =AVERAGE(M226:M227) -> 0 | O228: =AVERAGE(O226:O227) -> 0 | Q228: =AVERAGE(Q226:Q227) -> 0 | S228: =AVERAGE(S226:S227) -> 0 | U228: =AVERAGE(U226:U227) -> 0 | W228: =AVERAGE(W226:W227) -> 0 | Y228: =AVERAGE(Y226:Y227) -> 0
B231: Net Fixed Assets - Air Insulated Switchgear
C233: Gross Book Value
D234: Opening Balance | K234: =I237 -> 0 | M234: =K237 -> 0 | O234: =M237 -> 0 | Q234: =O237 -> 0 | S234: =Q237 -> 0 | U234: =S237 -> 0 | W234: =U237 -> 0 | Y234: =W237 -> 0
D235: Capital Additions during year (from ICM Costs) | I235: ='2. ICM_Costs'!G204 -> 0 | K235: ='2. ICM_Costs'!I266 -> 0
D236: Retirements/Removals (if applicable)
D237: Closing Balance | I237: =I234+I235-I236 -> 0 | K237: =K234+K235-K236 -> 0 | M237: =M234+M235-M236 -> 0 | O237: =O234+O235-O236 -> 0 | Q237: =Q234+Q235-Q236 -> 0 | S237: =S234+S235-S236 -> 0 | U237: =U234+U235-U236 -> 0 | W237: =W234+W235-W236 -> 0 | Y237: =Y234+Y235-Y236 -> 0
C239: Accumulated Depreciation
D240: Opening Balance | K240: =I243 -> 0 | M240: =K243 -> 0 | O240: =M243 -> 0 | Q240: =O243 -> 0 | S240: =Q243 -> 0 | U240: =S243 -> 0 | W240: =U243 -> 0 | Y240: =W243 -> 0
D241: Amortization expense during year | I241: =IF(ISERROR(-(I235/('3. Cost_of_Service_Parameters'!G67)+MIN((I234/'3. Cost_of_Service_Parameters'!G67),(I234+I240)))), 0, -(I235/('3. Cost_of_Service_Parameters'!G67)+MIN((I234/'3. Cost_of_Service_Parameters'!G67),(I234+I240)))) -> 0 | K241: =IF(ISERROR(-(K235/('3. Cost_of_Service_Parameters'!I67*2)+MIN((K234/'3. Cost_of_Service_Parameters'!I67),(K234+K240)))), 0, -(K235/('3. Cost_of_Service_Parameters'!I67*2)+MIN((K234/'3. Cost_of_Service_Parameters'!I67),(K234+K240)))) -> 0 | M241: =IF(ISERROR(-(M235/('3. Cost_of_Service_Parameters'!K67*2)+MIN((M234/'3. Cost_of_Service_Parameters'!K67),(M234+M240)))), 0, -(M235/('3. Cost_of_Service_Parameters'!K67*2)+MIN((M234/'3. Cost_of_Service_Parameters'!K67),(M234+M240)))) -> 0 | O241: =IF(ISERROR(-(O235/('3. Cost_of_Service_Parameters'!M67*2)+MIN((O234/'3. Cost_of_Service_Parameters'!M67),(O234+O240)))), 0, -(O235/('3. Cost_of_Service_Parameters'!M67*2)+MIN((O234/'3. Cost_of_Service_Parameters'!M67),(O234+O240)))) -> 0 | Q241: =IF(ISERROR(-(Q235/('3. Cost_of_Service_Parameters'!O67*2)+MIN((Q234/'3. Cost_of_Service_Parameters'!O67),(Q234+Q240)))), 0, -(Q235/('3. Cost_of_Service_Parameters'!O67*2)+MIN((Q234/'3. Cost_of_Service_Parameters'!O67),(Q234+Q240)))) -> 0 | S241: =IF(ISERROR(-(S235/('3. Cost_of_Service_Parameters'!Q67*2)+MIN((S234/'3. Cost_of_Service_Parameters'!Q67),(S234+S240)))), 0, -(S235/('3. Cost_of_Service_Parameters'!Q67*2)+MIN((S234/'3. Cost_of_Service_Parameters'!Q67),(S234+S240)))) -> 0 | U241: =IF(ISERROR(-(U235/('3. Cost_of_Service_Parameters'!S67*2)+MIN((U234/'3. Cost_of_Service_Parameters'!S67),(U234+U240)))), 0, -(U235/('3. Cost_of_Service_Parameters'!S67*2)+MIN((U234/'3. Cost_of_Service_Parameters'!S67),(U234+U240)))) -> 0 | W241: =IF(ISERROR(-(W235/('3. Cost_of_Service_Parameters'!U67*2)+MIN((W234/'3. Cost_of_Service_Parameters'!U67),(W234+W240)))), 0, -(W235/('3. Cost_of_Service_Parameters'!U67*2)+MIN((W234/'3. Cost_of_Service_Parameters'!U67),(W234+W240)))) -> 0 | Y241: =IF(ISERROR(-(Y235/('3. Cost_of_Service_Parameters'!W67*2)+MIN((Y234/'3. Cost_of_Service_Parameters'!W67),(Y234+Y240)))), 0, -(Y235/('3. Cost_of_Service_Parameters'!W67*2)+MIN((Y234/'3. Cost_of_Service_Parameters'!W67),(Y234+Y240)))) -> 0
D242: Retirements/Removals (if applicable)
D243: Closing Balance | I243: =I240+I241-I242 -> 0 | K243: =K240+K241-K242 -> 0 | M243: =M240+M241-M242 -> 0 | O243: =O240+O241-O242 -> 0 | Q243: =Q240+Q241-Q242 -> 0 | S243: =S240+S241-S242 -> 0 | U243: =U240+U241-U242 -> 0 | W243: =W240+W241-W242 -> 0 | Y243: =Y240+Y241-Y242 -> 0
C245: Net Book Value
D246: Opening Balance | I246: =I234+I240 -> 0 | K246: =I247 -> 0 | M246: =K247 -> 0 | O246: =M247 -> 0 | Q246: =O247 -> 0 | S246: =Q247 -> 0 | U246: =S247 -> 0 | W246: =U247 -> 0 | Y246: =W247 -> 0
D247: Closing Balance | I247: =I237+I243 -> 0 | K247: =K237+K243 -> 0 | M247: =M237+M243 -> 0 | O247: =O237+O243 -> 0 | Q247: =Q237+Q243 -> 0 | S247: =S237+S243 -> 0 | U247: =U237+U243 -> 0 | W247: =W237+W243 -> 0 | Y247: =Y237+Y243 -> 0
D248: Incremental CAPEX | I248: =I247 -> 0 | K248: =AVERAGE(K246:K247) -> 0 | M248: =AVERAGE(M246:M247) -> 0 | O248: =AVERAGE(O246:O247) -> 0 | Q248: =AVERAGE(Q246:Q247) -> 0 | S248: =AVERAGE(S246:S247) -> 0 | U248: =AVERAGE(U246:U247) -> 0 | W248: =AVERAGE(W246:W247) -> 0 | Y248: =AVERAGE(Y246:Y247) -> 0
B251: Net Fixed Assets - Solid Dielectric Switchgear
C253: Gross Book Value
D254: Opening Balance | K254: =I257 -> 0 | M254: =K257 -> 0 | O254: =M257 -> 0 | Q254: =O257 -> 0 | S254: =Q257 -> 0 | U254: =S257 -> 0 | W254: =U257 -> 0 | Y254: =W257 -> 0
D255: Capital Additions during year (from ICM Costs) | I255: ='2. ICM_Costs'!G206 -> 0 | K255: ='2. ICM_Costs'!I286 -> 0
D256: Retirements/Removals (if applicable)
D257: Closing Balance | I257: =I254+I255-I256 -> 0 | K257: =K254+K255-K256 -> 0 | M257: =M254+M255-M256 -> 0 | O257: =O254+O255-O256 -> 0 | Q257: =Q254+Q255-Q256 -> 0 | S257: =S254+S255-S256 -> 0 | U257: =U254+U255-U256 -> 0 | W257: =W254+W255-W256 -> 0 | Y257: =Y254+Y255-Y256 -> 0
C259: Accumulated Depreciation
D260: Opening Balance | K260: =I263 -> 0 | M260: =K263 -> 0 | O260: =M263 -> 0 | Q260: =O263 -> 0 | S260: =Q263 -> 0 | U260: =S263 -> 0 | W260: =U263 -> 0 | Y260: =W263 -> 0
D261: Amortization expense during year | I261: =IF(ISERROR(-(I255/('3. Cost_of_Service_Parameters'!G69)+MIN((I254/'3. Cost_of_Service_Parameters'!G69),(I254+I260)))), 0, -(I255/('3. Cost_of_Service_Parameters'!G69)+MIN((I254/'3. Cost_of_Service_Parameters'!G69),(I254+I260)))) -> 0 | K261: =IF(ISERROR(-(K255/('3. Cost_of_Service_Parameters'!I69*2)+MIN((K254/'3. Cost_of_Service_Parameters'!I69),(K254+K260)))), 0, -(K255/('3. Cost_of_Service_Parameters'!I69*2)+MIN((K254/'3. Cost_of_Service_Parameters'!I69),(K254+K260)))) -> 0 | M261: =IF(ISERROR(-(M255/('3. Cost_of_Service_Parameters'!K69*2)+MIN((M254/'3. Cost_of_Service_Parameters'!K69),(M254+M260)))), 0, -(M255/('3. Cost_of_Service_Parameters'!K69*2)+MIN((M254/'3. Cost_of_Service_Parameters'!K69),(M254+M260)))) -> 0 | O261: =IF(ISERROR(-(O255/('3. Cost_of_Service_Parameters'!M69*2)+MIN((O254/'3. Cost_of_Service_Parameters'!M69),(O254+O260)))), 0, -(O255/('3. Cost_of_Service_Parameters'!M69*2)+MIN((O254/'3. Cost_of_Service_Parameters'!M69),(O254+O260)))) -> 0 | Q261: =IF(ISERROR(-(Q255/('3. Cost_of_Service_Parameters'!O69*2)+MIN((Q254/'3. Cost_of_Service_Parameters'!O69),(Q254+Q260)))), 0, -(Q255/('3. Cost_of_Service_Parameters'!O69*2)+MIN((Q254/'3. Cost_of_Service_Parameters'!O69),(Q254+Q260)))) -> 0 | S261: =IF(ISERROR(-(S255/('3. Cost_of_Service_Parameters'!Q69*2)+MIN((S254/'3. Cost_of_Service_Parameters'!Q69),(S254+S260)))), 0, -(S255/('3. Cost_of_Service_Parameters'!Q69*2)+MIN((S254/'3. Cost_of_Service_Parameters'!Q69),(S254+S260)))) -> 0 | U261: =IF(ISERROR(-(U255/('3. Cost_of_Service_Parameters'!S69*2)+MIN((U254/'3. Cost_of_Service_Parameters'!S69),(U254+U260)))), 0, -(U255/('3. Cost_of_Service_Parameters'!S69*2)+MIN((U254/'3. Cost_of_Service_Parameters'!S69),(U254+U260)))) -> 0 | W261: =IF(ISERROR(-(W255/('3. Cost_of_Service_Parameters'!U69*2)+MIN((W254/'3. Cost_of_Service_Parameters'!U69),(W254+W260)))), 0, -(W255/('3. Cost_of_Service_Parameters'!U69*2)+MIN((W254/'3. Cost_of_Service_Parameters'!U69),(W254+W260)))) -> 0 | Y261: =IF(ISERROR(-(Y255/('3. Cost_of_Service_Parameters'!W69*2)+MIN((Y254/'3. Cost_of_Service_Parameters'!W69),(Y254+Y260)))), 0, -(Y255/('3. Cost_of_Service_Parameters'!W69*2)+MIN((Y254/'3. Cost_of_Service_Parameters'!W69),(Y254+Y260)))) -> 0
D262: Retirements/Removals (if applicable)
D263: Closing Balance | I263: =I260+I261-I262 -> 0 | K263: =K260+K261-K262 -> 0 | M263: =M260+M261-M262 -> 0 | O263: =O260+O261-O262 -> 0 | Q263: =Q260+Q261-Q262 -> 0 | S263: =S260+S261-S262 -> 0 | U263: =U260+U261-U262 -> 0 | W263: =W260+W261-W262 -> 0 | Y263: =Y260+Y261-Y262 -> 0
C265: Net Book Value
D266: Opening Balance | I266: =I254+I260 -> 0 | K266: =I267 -> 0 | M266: =K267 -> 0 | O266: =M267 -> 0 | Q266: =O267 -> 0 | S266: =Q267 -> 0 | U266: =S267 -> 0 | W266: =U267 -> 0 | Y266: =W267 -> 0
D267: Closing Balance | I267: =I257+I263 -> 0 | K267: =K257+K263 -> 0 | M267: =M257+M263 -> 0 | O267: =O257+O263 -> 0 | Q267: =Q257+Q263 -> 0 | S267: =S257+S263 -> 0 | U267: =U257+U263 -> 0 | W267: =W257+W263 -> 0 | Y267: =Y257+Y263 -> 0
D268: Incremental CAPEX | I268: =I267 -> 0 | K268: =AVERAGE(K266:K267) -> 0 | M268: =AVERAGE(M266:M267) -> 0 | O268: =AVERAGE(O266:O267) -> 0 | Q268: =AVERAGE(Q266:Q267) -> 0 | S268: =AVERAGE(S266:S267) -> 0 | U268: =AVERAGE(U266:U267) -> 0 | W268: =AVERAGE(W266:W267) -> 0 | Y268: =AVERAGE(Y266:Y267) -> 0
B271: Net Fixed Assets - UG Cable Injection
C273: Gross Book Value
D274: Opening Balance | K274: =I277 -> 0 | M274: =K277 -> 0 | O274: =M277 -> 0 | Q274: =O277 -> 0 | S274: =Q277 -> 0 | U274: =S277 -> 0 | W274: =U277 -> 0 | Y274: =W277 -> 0
... 60 more rows

Sheet 5. UCC_Calculation
A18: Sheet 6: CCA For PILs Calculation
A20: UCC/Class 47 | D20: ='3. Cost_of_Service_Parameters'!G19 -> 2018
D21: ='2. ICM_Costs'!G19 -> Audited Actual
A23: Opening UCC | D23: 0
A24: Capital Additions | D24: ='2. ICM_Costs'!G219 -> 15873596.2
A25: Retirements/Removals (if applicable)
A26: UCC Full Year | D26: =SUM(D23:D24)-D25 -> 15873596.2
A29: CCA Rate Class | D29: ='3. Cost_of_Service_Parameters'!G83 -> 47
A30: CCA Rate | D30: ='3. Cost_of_Service_Parameters'!G84 -> 0.08
A31: CCA | D31: =D26*D30 -> 1269887.696
A32: Closing UCC | D32: =IF((D26-D31)<0, 0, D26-D31) -> 14603708.5
A34: UCC/Class 8 | D34: =D20 -> 2018
D35: Audited Actual
A37: Opening UCC | D37: 0
A38: Capital Additions RTU's | D38: 0
A39: Retirements/Removals (if applicable)
A40: UCC Full Year | D40: =SUM(D37:D38)-D39 -> 0
A43: CCA Rate Class | D43: ='3. Cost_of_Service_Parameters'!G107 -> 47
A44: CCA Rate | D44: ='3. Cost_of_Service_Parameters'!G108 -> 0.08
A45: CCA | D45: =D40*D44 -> 0
A46: Closing UCC | D46: =IF((D40-D45)<0, 0, D40-D45) -> 0

Sheet 6. ICMIRR_2018
A11: Sheet 6: | C11: Incremental Capital Adjustment
I24: 2018 OEB Approved
C26: Return on Rate Base
C27: Incremental Capital CAPEX | F27: ='2. ICM_Costs'!G219 -> 15873596.2 | G27: B | K27: 11243530
C28: Depreciation Expense | F28: =-'4. ICM_Assets_and_Rate_Base'!I357 -> 344837.6036 | G28: C | K28: 266271.2906
C29: Incremental Capital CAPEX to be included in Rate Base | F29: =F27-F28 -> 15528758.6 | G29: D = B - C | K29: =K27-K28 -> 10977258.71
C31: Deemed ShortTerm Debt % | D31: ='3. Cost_of_Service_Parameters'!G22 -> 0.04 | E31: E | F31: =F29*D31 -> 621150.3439 | G31: G = D * E | I31: =D31 -> 0.04 | K31: =K29*I31 -> 439090.3484
C32: Deemed Long Term Debt % | D32: ='3. Cost_of_Service_Parameters'!G23 -> 0.56 | E32: F | F32: =F29*D32 -> 8696104.814 | G32: H = D * F | I32: =D32 -> 0.56 | K32: =K29*I32 -> 6147264.877
C34: Short Term Interest | D34: ='3. Cost_of_Service_Parameters'!G29 -> 0.0176 | E34: I | F34: =F31*D34 -> 10932.24605 | G34: K = G * I | I34: =D34 -> 0.0176 | K34: =K31*I34 -> 7727.990131
C35: Long Term Interest | D35: ='3. Cost_of_Service_Parameters'!G30 -> 0.03882504 | E35: J | F35: =F32*D35 -> 337626.6172 | G35: L = H * J | I35: =D35 -> 0.03882504 | K35: =K32*I35 -> 238667.8047
C37: Return on Rate Base - Interest | F37: =SUM(F34:F35) -> 348558.8633 | G37: M = K + L | K37: =SUM(K34:K35) -> 246395.7949
C40: Deemed Equity % | D40: ='3. Cost_of_Service_Parameters'!G24 -> 0.4 | E40: N | F40: =F29*D40 -> 6211503.439 | G40: P = D * N | I40: 0.4 | K40: =K29*I40 -> 4390903.484
C42: Return on Rate Base -Equity | D42: ='3. Cost_of_Service_Parameters'!G31 -> 0.0878 | E42: O | F42: =F40*D42 -> 545370.0019 | G42: Q = P * O | I42: =D42 -> 0.0878 | K42: =K40*I42 -> 385521.3259
C44: Return on Rate Base - Total | F44: =F37+F42 -> 893928.8652 | G44: R = M + Q | K44: =K37+K42 -> 631917.1208
C48: Amortization Expense
C50: Amortization Expense - Incremental | E50: C | F50: =F28 -> 344837.6036 | G50: S | K50: =K28 -> 266271.2906
C53: Grossed up PIL's
C55: Regulatory Taxable Income | E55: O | F55: =F42 -> 545370.0019 | G55: T | K55: =K42 -> 385521.3259
C57: Add Back Amortization Expense | E57: S | F57: =F50 -> 344837.6036 | G57: U | K57: =K50 -> 266271.2906
C59: Deduct CCA | F59: ='5. UCC_Calculation'!D31+'5. UCC_Calculation'!D45 -> 1269887.696 | G59: V | K59: 899482.3832
C61: Incremental Taxable Income | F61: =F55+F57-F59 -> -379680.0905 | G61: W = T + U - V | K61: =K55+K57-K59 -> -247689.7667
C63: Current Tax Rate (F1.1 Z-Factor Tax Changes) | D63: ='3. Cost_of_Service_Parameters'!G40 -> 0.265 | E63: X | I63: =D63 -> 0.265
C65: PIL's Before Gross Up | F65: =F61*D63 -> -100615.224 | G65: Y = W * X | K65: =K61*I63 -> -65637.78817
C67: Incremental Grossed Up PIL's | F67: =F65/(1-D63) -> -136891.4612 | G67: Z = Y / ( 1 - X ) | K67: =K65/(1-I63) -> -89303.11316
C70: Ontario Capital Tax
C71: Incremental Capital CAPEX | F71: =F27 -> 15873596.2 | G71: AA | K71: =K27 -> 11243530
C73: Less : Available Capital Exemption (if any) | F73: 0 | G73: AB | K73: 0
C75: Incremental Capital CAPEX subject to OCT | F75: =F71-F73 -> 15873596.2 | G75: AC = AA - AB | K75: =K71-K73 -> 11243530
C77: Ontario Capital Tax Rate (F1.1 Z-Factor Tax Changes) | D77: 0 | E77: AD
C79: Incremental Ontario Capital Tax | F79: =F75*D77 -> 0 | G79: AE = AC * AD | K79: =K75*I77 -> 0
C82: Incremental Revenue Requirement
C83: Return on Rate Base - Total | E83: Q | F83: =F44 -> 893928.8652 | G83: AF | K83: =K44 -> 631917.1208
C84: Amortization Expense - Total | E84: S | F84: =F50 -> 344837.6036 | G84: AG | K84: =K50 -> 266271.2906
C85: Incremental Grossed Up PIL's | E85: Z | F85: =F67 -> -136891.4612 | G85: AH | K85: =K67 -> -89303.11316
C86: Incremental Ontario Capital Tax | E86: AE | F86: =F79 -> 0 | G86: AI | K86: =K79 -> 0
C88: Incremental Revenue Requirement | F88: =SUM(F83:F86) -> 1101875.008 | G88: AJ = AF + AG + AH + AI | K88: =SUM(K83:K86) -> 808885.2982

Sheet 7. Rate Rider Revs
B13: This worksheet calculates the rate riders revenues.
B17: Sheet 7: ICM Rate Rider Revenues
B22: Prescribed Interest Rates | C22: Approved Deferral and Variance Accounts | D22: CWIP | F22: Date | G22: Year | H22: Quarter | J22: Opening Balance (Principal) | K22: Rate Rider Revenues | L22: Interest Rate | M22: Interest | N22: Principal & Interest (Cumm.) | P22: Board Approved ICM Rate Rider | Q22: Board Approved ICM Rate Rider (Cumm.)
B24: 2018 Q1 | C24: 0.015 | D24: 0.0299 | F24: 2018-01-01 | G24: =YEAR(F24) -> 2018 | H24: =IF(MONTH(F24)=0,"",IF(MONTH(F24)<4,"Q1",IF(MONTH(F24)<7,"Q2",IF(MONTH(F24)<10,"Q3","Q4")))) -> Q1 | I24: =CONCATENATE(G24," ",H24) -> 2018 Q1 | J24: 0 | L24: =VLOOKUP(I24,$B$22:$D$59,2) -> 0.015 | M24: =ROUND(J24*L24/12,2) -> 0 | N24: =K24+M24 -> 0 | Q24: =P24 -> 0
B25: 2018 Q2 | C25: 0.0189 | D25: 0.0335 | F25: 2018-02-01 | G25: =YEAR(F25) -> 2018 | H25: =IF(MONTH(F25)=0,"",IF(MONTH(F25)<4,"Q1",IF(MONTH(F25)<7,"Q2",IF(MONTH(F25)<10,"Q3","Q4")))) -> Q1 | I25: =CONCATENATE(G25," ",H25) -> 2018 Q1 | J25: =J24+K24 -> 0 | L25: 0.015 | M25: =ROUND(J25*L25/12,2) -> 0 | N25: =N24+K25+M25 -> 0 | Q25: =Q24+P25 -> 0
B26: 2018 Q3 | C26: 0.0189 | D26: 0.0335 | F26: 2018-03-01 | G26: 2018 | H26: Q1 | I26: 2018 Q1 | J26: =J25+K25 -> 0 | L26: 0.015 | M26: 0 | N26: =N25+K26+M26 -> 0 | Q26: =Q25+P26 -> 0
B27: 2018 Q4 | C27: 0.0217 | D27: 0.0335 | F27: 2018-04-01 | G27: 2018 | H27: Q2 | I27: 2018 Q2 | J27: 0 | L27: 0.0189 | M27: 0 | N27: 0 | Q27: 0
B28: 2019 Q1 | C28: 0.0245 | D28: 0.0382 | F28: 2018-05-01 | G28: 2018 | H28: Q2 | I28: 2018 Q2 | J28: 0 | K28: 70994.74 | L28: 0.0189 | M28: 0 | N28: 70994.74 | P28: ='6. ICMIRR_2018'!$K$88/12 -> 67407.10819 | Q28: 67407.10819
B29: 2019 Q2 | C29: 0.0218 | D29: 0.0339 | F29: 2018-06-01 | G29: 2018 | H29: Q2 | I29: 2018 Q2 | J29: 70994.74 | K29: 70981 | L29: 0.0189 | M29: 111.82 | N29: 142087.56 | P29: ='6. ICMIRR_2018'!$K$88/12 -> 67407.10819 | Q29: 134814.2164
B30: 2019 Q3 | C30: 0.0218 | D30: 0.0288 | F30: 2018-07-01 | G30: 2018 | H30: Q3 | I30: 2018 Q3 | J30: 141975.74 | K30: 72735.35 | L30: 0.0189 | M30: 223.61 | N30: 215046.52 | P30: ='6. ICMIRR_2018'!$K$88/12 -> 67407.10819 | Q30: 202221.3246
B31: 2019 Q4 | C31: 0.0218 | D31: 0.0288 | F31: 2018-08-01 | G31: 2018 | H31: Q3 | I31: 2018 Q3 | J31: 214711.09 | K31: 73743.54 | L31: 0.0189 | M31: 338.17 | N31: 289128.23 | P31: ='6. ICMIRR_2018'!$K$88/12 -> 67407.10819 | Q31: 269628.4327
B32: 2020 Q1 | C32: 0.0218 | D32: 0.0288 | F32: 2018-09-01 | G32: 2018 | H32: Q3 | I32: 2018 Q3 | J32: 288454.63 | K32: 65536.56 | L32: 0.0189 | M32: 454.32 | N32: 355119.11 | P32: ='6. ICMIRR_2018'!$K$88/12 -> 67407.10819 | Q32: 337035.5409
B33: 2020 Q2 | C33: 0.0218 | D33: 0.0248 | F33: 2018-10-01 | G33: 2018 | H33: Q4 | I33: 2018 Q4 | J33: 353991.19 | K33: 72992.2 | L33: 0.0217 | M33: 640.13 | N33: 428751.44 | P33: ='6. ICMIRR_2018'!$K$88/12 -> 67407.10819 | Q33: 404442.6491
B34: 2020 Q3 | C34: 0.0057 | D34: 0.0248 | F34: 2018-11-01 | G34: 2018 | H34: Q4 | I34: 2018 Q4 | J34: 426983.39 | K34: 68939.11 | L34: 0.0217 | M34: 772.13 | N34: 498462.68 | P34: ='6. ICMIRR_2018'!$K$88/12 -> 67407.10819 | Q34: 471849.7573
B35: 2020 Q4 | C35: 0.0057 | D35: 0.0203 | F35: 2018-12-01 | G35: 2018 | H35: Q4 | I35: 2018 Q4 | J35: 495922.5 | K35: 70562.03 | L35: 0.0217 | M35: 896.79 | N35: 569921.5 | P35: ='6. ICMIRR_2018'!$K$88/12 -> 67407.10819 | Q35: 539256.8655
B36: 2021 Q1 | C36: 0.0057 | D36: 0.0203 | F36: 2019-01-01 | G36: 2019 | H36: Q1 | I36: 2019 Q1 | J36: 566484.53 | K36: 69165.47 | L36: 0.0245 | M36: 1156.57 | N36: 640243.54 | P36: ='6. ICMIRR_2018'!$K$88/12 -> 67407.10819 | Q36: 606663.9737
B37: 2021 Q2 | C37: 0.0057 | D37: 0.0229 | F37: 2019-02-01 | G37: 2019 | H37: Q1 | I37: 2019 Q1 | J37: 635650 | K37: 63632.45 | L37: 0.0245 | M37: 1297.79 | N37: 705173.78 | P37: ='6. ICMIRR_2018'!$K$88/12 -> 67407.10819 | Q37: 674071.0819
B38: 2021 Q3 | C38: 0.0057 | D38: 0.0229 | F38: 2019-03-01 | G38: 2019 | H38: Q1 | I38: 2019 Q1 | J38: 699282.45 | K38: 71070.55 | L38: 0.0245 | M38: 1427.7 | N38: 777672.03 | P38: ='6. ICMIRR_2018'!$K$88/12 -> 67407.10819 | Q38: 741478.1901
B39: 2021 Q4 | C39: 0.0057 | D39: 0.0229 | F39: 2019-04-01 | G39: 2019 | H39: Q2 | I39: 2019 Q2 | J39: 770353 | K39: 71689.55 | L39: 0.0218 | M39: 1399.47 | N39: 850761.05 | P39: ='6. ICMIRR_2018'!$K$88/12 -> 67407.10819 | Q39: 808885.2982
B40: 2022 Q1 | C40: 0.0057 | D40: 0.0272 | F40: 2019-05-01 | G40: 2019 | H40: Q2 | I40: 2019 Q2 | J40: 842042.55 | K40: 69113.61 | L40: 0.0218 | M40: 1529.71 | N40: 921404.37 | P40: ='6. ICMIRR_2018'!$K$88/12 -> 67407.10819 | Q40: 876292.4064
B41: 2022 Q2 | C41: 0.0102 | D41: 0.0331 | F41: 2019-06-01 | G41: 2019 | H41: Q2 | I41: 2019 Q2 | J41: 911156.16 | K41: 69844.29 | L41: 0.0218 | M41: 1655.27 | N41: 992903.93 | P41: ='6. ICMIRR_2018'!$K$88/12 -> 67407.10819 | Q41: 943699.5146
B42: 2022 Q3 | C42: 0.022 | D42: 0.0466 | F42: 2019-07-01 | G42: 2019 | H42: Q3 | I42: 2019 Q3 | J42: 981000.45 | K42: 75344.87 | L42: 0.0218 | M42: 1782.15 | N42: 1070030.95 | P42: ='6. ICMIRR_2018'!$K$88/12 -> 67407.10819 | Q42: 1011106.623
B43: 2022 Q4 | C43: 0.0387 | D43: 0.0501 | F43: 2019-08-01 | G43: 2019 | H43: Q3 | I43: 2019 Q3 | J43: 1056345.32 | K43: 69730.03 | L43: 0.0218 | M43: 1919.03 | N43: 1141680.01 | P43: ='6. ICMIRR_2018'!$K$88/12 -> 67407.10819 | Q43: 1078513.731
B44: 2023 Q1 | C44: 0.0473 | D44: 0.0501 | F44: 2019-09-01 | G44: 2019 | H44: Q3 | I44: 2019 Q3 | J44: 1126075.35 | K44: 65250.36 | L44: 0.0218 | M44: 2045.7 | N44: 1208976.07 | P44: ='6. ICMIRR_2018'!$K$88/12 -> 67407.10819 | Q44: 1145920.839
B45: 2023 Q2 | C45: 0.0498 | D45: 0.0501 | F45: 2019-10-01 | G45: 2019 | H45: Q4 | I45: 2019 Q4 | J45: 1191325.71 | K45: 71301.82 | L45: 0.0218 | M45: 2164.24 | N45: 1282442.13 | P45: ='6. ICMIRR_2018'!$K$88/12 -> 67407.10819 | Q45: 1213327.947
B46: 2023 Q3 | C46: 0.0498 | D46: 0.0501 | F46: 2019-11-01 | G46: 2019 | H46: Q4 | I46: 2019 Q4 | J46: 1262627.53 | K46: 68395.65 | L46: 0.0218 | M46: 2293.77 | N46: 1353131.55 | P46: ='6. ICMIRR_2018'!$K$88/12 -> 67407.10819 | Q46: 1280735.056
B47: 2023 Q4 | C47: 0.0549 | D47: 0.0548 | F47: 2019-12-01 | G47: 2019 | H47: Q4 | I47: 2019 Q4 | J47: 1331023.18 | K47: 71228.04 | L47: 0.0218 | M47: 2418.03 | N47: 1426777.62 | P47: ='6. ICMIRR_2018'!$K$88/12 -> 67407.10819 | Q47: 1348142.164
B48: 2024 Q1 | C48: 0.0549 | D48: 0.0548 | F48: 2020-01-01 | G48: 2020 | H48: Q1 | I48: 2020 Q1 | J48: 1402251.22 | K48: 68743.66 | L48: 0.0218 | M48: =ROUND(J48*L48/12,2) -> 2547.42 | N48: =N47+K48+M48 -> 1498068.7 | P48: ='6. ICMIRR_2018'!$K$88/12 -> 67407.10819 | Q48: =Q47+P48 -> 1415549.272
B49: 2024 Q2 | C49: 0.0549 | D49: 0.0598 | F49: 2020-02-01 | G49: 2020 | H49: Q1 | I49: 2020 Q1 | J49: 1470994.88 | K49: 66531.02 | L49: 0.0218 | M49: 2672.31 | N49: 1567272.03 | P49: ='6. ICMIRR_2018'!$K$88/12 -> 67407.10819 | Q49: 1482956.38
B50: 2024 Q3 | C50: 0.052 | D50: 0.0598 | F50: 2020-03-01 | G50: 2020 | H50: Q1 | I50: 2020 Q1 | J50: 1537525.9 | K50: 72391.4 | L50: 0.0218 | M50: 2793.17 | N50: 1642456.6 | P50: ='6. ICMIRR_2018'!$K$88/12 -> 67407.10819 | Q50: 1550363.488
B51: 2024 Q4 | C51: 0.044 | D51: 0.0455 | F51: 2020-04-01 | G51: 2020 | H51: Q2 | I51: 2020 Q2 | J51: 1609917.3 | K51: 64202.14 | L51: 0.0218 | M51: 2924.68 | N51: 1709583.42 | P51: ='6. ICMIRR_2018'!$K$88/12 -> 67407.10819 | Q51: 1617770.596
B52: 2025 Q1 | C52: 0.0364 | D52: 0.0423 | F52: 2020-05-01 | G52: 2020 | H52: Q2 | I52: 2020 Q2 | J52: 1674119.44 | K52: 65169.28 | L52: 0.0218 | M52: 3041.32 | N52: 1777794.02 | P52: ='6. ICMIRR_2018'!$K$88/12 -> 67407.10819 | Q52: 1685177.705
B53: 2025 Q2 | C53: 0.0316 | D53: 0.0423 | F53: 2020-06-01 | G53: 2020 | H53: Q2 | I53: 2020 Q2 | J53: 1739288.72 | K53: 73478.83 | L53: 0.0218 | M53: 3159.71 | N53: 1854432.56 | P53: ='6. ICMIRR_2018'!$K$88/12 -> 67407.10819 | Q53: 1752584.813
B54: 2025 Q3 | C54: =C53 -> 0.0316 | D54: 0.0423 | F54: 2020-07-01 | G54: 2020 | H54: Q3 | I54: 2020 Q3 | J54: 1812767.55 | K54: 71690.66 | L54: 0.0057 | M54: 861.06 | N54: 1926984.28 | P54: ='6. ICMIRR_2018'!$K$88/12 -> 67407.10819 | Q54: 1819991.921
B55: 2025 Q4 | C55: =C54 -> 0.0316 | D55: 0.0423 | F55: 2020-08-01 | G55: 2020 | H55: Q3 | I55: 2020 Q3 | J55: 1884458.21 | K55: 70277.5 | L55: 0.0057 | M55: 895.12 | N55: 1998156.9 | P55: ='6. ICMIRR_2018'!$K$88/12 -> 67407.10819 | Q55: 1887399.029
B56: 2026 Q1 | C56: 0.0316 | D56: 0.0423 | F56: 2020-09-01 | G56: 2020 | H56: Q3 | I56: 2020 Q3 | J56: 1954735.71 | K56: 69546.3 | L56: 0.0057 | M56: 928.5 | N56: 2068631.7 | P56: ='6. ICMIRR_2018'!$K$88/12 -> 67407.10819 | Q56: 1954806.137
B57: 2026 Q2 | C57: 0.0316 | D57: 0.0423 | F57: 2020-10-01 | G57: 2020 | H57: Q4 | I57: 2020 Q4 | J57: 2024282.01 | K57: 70547.61 | L57: 0.0057 | M57: 961.53 | N57: 2140140.84 | P57: ='6. ICMIRR_2018'!$K$88/12 -> 67407.10819 | Q57: 2022213.246
B58: 2026 Q3 | C58: 0.0316 | D58: 0.0423 | F58: 2020-11-01 | G58: 2020 | H58: Q4 | I58: 2020 Q4 | J58: 2094829.62 | K58: 70384.24 | L58: 0.0057 | M58: 995.04 | N58: 2211520.12 | P58: ='6. ICMIRR_2018'!$K$88/12 -> 67407.10819 | Q58: 2089620.354
B59: 2026 Q4 | C59: 0.0316 | D59: 0.0423 | F59: 2020-12-01 | G59: 2020 | H59: =IF(MONTH(F59)=0,"",IF(MONTH(F59)<4,"Q1",IF(MONTH(F59)<7,"Q2",IF(MONTH(F59)<10,"Q3","Q4")))) -> Q4 | I59: 2020 Q4 | J59: 2165213.86 | K59: 74065.04 | L59: 0.0057 | M59: 1028.48 | N59: 2286613.64 | P59: ='6. ICMIRR_2018'!$K$88/12 -> 67407.10819 | Q59: 2157027.462
F60: 2021-01-01 | G60: 2021 | H60: Q1 | I60: 2021 Q1 | J60: =J59+K59 -> 2239278.9 | K60: 67037.72 | L60: =VLOOKUP(I60,$B$22:$D$59,2) -> 0.0057 | M60: 1063.66 | N60: 2354715.02 | P60: ='6. ICMIRR_2018'!$K$88/12 -> 67407.10819 | Q60: 2224434.57
B61: Note: 2025-2026 Interest rates are forecasted. | F61: 2021-02-01 | G61: 2021 | H61: Q1 | I61: 2021 Q1 | J61: 2306316.62 | K61: 66294.65 | L61: 0.0057 | M61: 1095.5 | N61: 2422105.17 | P61: ='6. ICMIRR_2018'!$K$88/12 -> 67407.10819 | Q61: 2291841.678
F62: 2021-03-01 | G62: 2021 | H62: Q1 | I62: 2021 Q1 | J62: 2372611.27 | K62: 74422.22 | L62: 0.0057 | M62: 1126.99 | N62: 2497654.38 | P62: ='6. ICMIRR_2018'!$K$88/12 -> 67407.10819 | Q62: 2359248.787
F63: 2021-04-01 | G63: 2021 | H63: Q2 | I63: 2021 Q2 | J63: 2447033.49 | K63: 60186.05 | L63: 0.0057 | M63: 1162.34 | N63: 2559002.77 | P63: ='6. ICMIRR_2018'!$K$88/12 -> 67407.10819 | Q63: 2426655.895
F64: 2021-05-01 | G64: 2021 | H64: Q2 | I64: 2021 Q2 | J64: 2507219.54 | K64: 70777.8 | L64: 0.0057 | M64: 1190.93 | N64: 2630971.5 | P64: ='6. ICMIRR_2018'!$K$88/12 -> 67407.10819 | Q64: 2494063.003
F65: 2021-06-01 | G65: 2021 | H65: Q2 | I65: 2021 Q2 | J65: 2577997.34 | K65: 72016.36 | L65: 0.0057 | M65: 1224.55 | N65: 2704212.41 | P65: ='6. ICMIRR_2018'!$K$88/12 -> 67407.10819 | Q65: 2561470.111
F66: 2021-07-01 | G66: 2021 | H66: Q3 | I66: 2021 Q3 | J66: 2650013.7 | K66: 71705.08 | L66: 0.0057 | M66: 1258.76 | N66: 2777176.25 | P66: ='6. ICMIRR_2018'!$K$88/12 -> 67407.10819 | Q66: 2628877.219
F67: 2021-08-01 | G67: 2021 | H67: Q3 | I67: 2021 Q3 | J67: 2721718.78 | K67: 73880.48 | L67: 0.0057 | M67: 1292.82 | N67: 2852349.55 | P67: ='6. ICMIRR_2018'!$K$88/12 -> 67407.10819 | Q67: 2696284.327
F68: 2021-09-01 | G68: 2021 | H68: Q3 | I68: 2021 Q3 | J68: 2795599.26 | K68: 67463.55 | L68: 0.0057 | M68: 1327.91 | N68: 2921141.01 | P68: ='6. ICMIRR_2018'!$K$88/12 -> 67407.10819 | Q68: 2763691.436
F69: 2021-10-01 | G69: 2021 | H69: Q4 | I69: 2021 Q4 | J69: 2863062.81 | K69: 69582.48 | L69: 0.0057 | M69: 1359.95 | N69: 2992083.44 | P69: ='6. ICMIRR_2018'!$K$88/12 -> 67407.10819 | Q69: 2831098.544
F70: 2021-11-01 | G70: 2021 | H70: Q4 | I70: 2021 Q4 | J70: 2932645.29 | K70: 72119.82 | L70: 0.0057 | M70: 1393.01 | N70: 3065596.27 | P70: ='6. ICMIRR_2018'!$K$88/12 -> 67407.10819 | Q70: 2898505.652
F71: 2021-12-01 | G71: 2021 | H71: =IF(MONTH(F71)=0,"",IF(MONTH(F71)<4,"Q1",IF(MONTH(F71)<7,"Q2",IF(MONTH(F71)<10,"Q3","Q4")))) -> Q4 | I71: 2021 Q4 | J71: 3004765.11 | K71: 71002.82 | L71: 0.0057 | M71: 1427.26 | N71: 3138026.35 | P71: ='6. ICMIRR_2018'!$K$88/12 -> 67407.10819 | Q71: 2965912.76
F72: 2022-01-01 | G72: =YEAR(F72) -> 2022 | H72: =IF(MONTH(F72)=0,"",IF(MONTH(F72)<4,"Q1",IF(MONTH(F72)<7,"Q2",IF(MONTH(F72)<10,"Q3","Q4")))) -> Q1 | I72: 2022 Q1 | J72: =J71+K71 -> 3075767.93 | K72: 68395.96 | L72: =VLOOKUP(I72,$B$22:$D$59,2) -> 0.0057 | M72: =ROUND(J72*L72/12,2) -> 1460.99 | N72: =N71+K72+M72 -> 3207883.3 | P72: ='6. ICMIRR_2018'!$K$88/12 -> 67407.10819 | Q72: =Q71+P72 -> 3033319.868
F73: 2022-02-01 | G73: 2022 | H73: Q1 | I73: 2022 Q1 | J73: 3144163.89 | K73: 66370.49 | L73: 0.0057 | M73: 1493.48 | N73: 3275747.27 | P73: ='6. ICMIRR_2018'!$K$88/12 -> 67407.10819 | Q73: 3100726.977
F74: 2022-03-01 | G74: 2022 | H74: Q1 | I74: 2022 Q1 | J74: 3210534.38 | K74: 74288.17 | L74: 0.0057 | M74: 1525 | N74: 3351560.44 | P74: ='6. ICMIRR_2018'!$K$88/12 -> 67407.10819 | Q74: 3168134.085
F75: 2022-04-01 | G75: 2022 | H75: Q2 | I75: 2022 Q2 | J75: 3284822.55 | K75: 65158.84 | L75: 0.0102 | M75: 2792.1 | N75: 3419511.38 | P75: ='6. ICMIRR_2018'!$K$88/12 -> 67407.10819 | Q75: 3235541.193
F76: 2022-05-01 | G76: 2022 | H76: Q2 | I76: 2022 Q2 | J76: 3349981.39 | K76: 71446.69 | L76: 0.0102 | M76: 2847.48 | N76: 3493805.55 | P76: ='6. ICMIRR_2018'!$K$88/12 -> 67407.10819 | Q76: 3302948.301
F77: 2022-06-01 | G77: 2022 | H77: Q2 | I77: 2022 Q2 | J77: 3421428.08 | K77: 72542.03 | L77: 0.0102 | M77: 2908.21 | N77: 3569255.79 | P77: ='6. ICMIRR_2018'!$K$88/12 -> 67407.10819 | Q77: 3370355.409
F78: 2022-07-01 | G78: 2022 | H78: Q3 | I78: 2022 Q3 | J78: 3493970.11 | K78: 72749.51 | L78: 0.022 | M78: 6405.61 | N78: 3648410.91 | P78: ='6. ICMIRR_2018'!$K$88/12 -> 67407.10819 | Q78: 3437762.518
F79: 2022-08-01 | G79: 2022 | H79: Q3 | I79: 2022 Q3 | J79: 3566719.62 | K79: 75817.78 | L79: 0.022 | M79: 6538.99 | N79: 3730767.68 | P79: ='6. ICMIRR_2018'!$K$88/12 -> 67407.10819 | Q79: 3505169.626
F80: 2022-09-01 | G80: 2022 | H80: Q3 | I80: 2022 Q3 | J80: 3642537.4 | K80: 67733.95 | L80: 0.022 | M80: 6677.99 | N80: 3805179.62 | P80: ='6. ICMIRR_2018'!$K$88/12 -> 67407.10819 | Q80: 3572576.734
F81: 2022-10-01 | G81: 2022 | H81: Q4 | I81: 2022 Q4 | J81: 3710271.35 | K81: 70228.46 | L81: 0.0387 | M81: 11965.63 | N81: 3887373.71 | P81: ='6. ICMIRR_2018'!$K$88/12 -> 67407.10819 | Q81: 3639983.842
F82: 2022-11-01 | G82: 2022 | H82: Q4 | I82: 2022 Q4 | J82: 3780499.81 | K82: 67906.18 | L82: 0.0387 | M82: 12192.11 | N82: 3967472 | P82: ='6. ICMIRR_2018'!$K$88/12 -> 67407.10819 | Q82: 3707390.95
F83: 2022-12-01 | G83: 2022 | H83: =IF(MONTH(F83)=0,"",IF(MONTH(F83)<4,"Q1",IF(MONTH(F83)<7,"Q2",IF(MONTH(F83)<10,"Q3","Q4")))) -> Q4 | I83: 2022 Q4 | J83: 3848405.99 | K83: 74500.81 | L83: 0.0387 | M83: 12411.11 | N83: 4054383.92 | P83: ='6. ICMIRR_2018'!$K$88/12 -> 67407.10819 | Q83: 3774798.058
F84: 2023-01-01 | G84: =YEAR(F84) -> 2023 | H84: =IF(MONTH(F84)=0,"",IF(MONTH(F84)<4,"Q1",IF(MONTH(F84)<7,"Q2",IF(MONTH(F84)<10,"Q3","Q4")))) -> Q1 | I84: 2023 Q1 | J84: =J83+K83 -> 3922906.8 | K84: 71517.89 | L84: =VLOOKUP(I84,$B$22:$D$59,2) -> 0.0473 | M84: =ROUND(J84*L84/12,2) -> 15462.79 | N84: =N83+K84+M84 -> 4141364.6 | P84: ='6. ICMIRR_2018'!$K$88/12 -> 67407.10819 | Q84: =Q83+P84 -> 3842205.167
F85: 2023-02-01 | G85: 2023 | H85: Q1 | I85: 2023 Q1 | J85: 3994424.69 | K85: 63999.99 | L85: 0.0473 | M85: 15744.69 | N85: 4221109.28 | P85: ='6. ICMIRR_2018'!$K$88/12 -> 67407.10819 | Q85: 3909612.275
F86: 2023-03-01 | G86: 2023 | H86: Q1 | I86: 2023 Q1 | J86: 4058424.68 | K86: 73151.51 | L86: 0.0473 | M86: 15996.96 | N86: 4310257.75 | P86: ='6. ICMIRR_2018'!$K$88/12 -> 67407.10819 | Q86: 3977019.383
F87: 2023-04-01 | G87: 2023 | H87: Q2 | I87: 2023 Q2 | J87: 4131576.19 | K87: 70275.02 | L87: 0.0498 | M87: 17146.04 | N87: 4397678.81 | P87: ='6. ICMIRR_2018'!$K$88/12 -> 67407.10819 | Q87: 4044426.491
F88: 2023-05-01 | G88: 2023 | H88: Q2 | I88: 2023 Q2 | J88: 4201851.21 | K88: 72961.79 | L88: 0.0498 | M88: 17437.68 | N88: 4488078.28 | P88: ='6. ICMIRR_2018'!$K$88/12 -> 67407.10819 | Q88: 4111833.599
F89: 2023-06-01 | G89: 2023 | H89: Q2 | I89: =CONCATENATE(G89," ",H89) -> 2023 Q2 | J89: 4274813 | K89: 70300.1 | L89: 0.0498 | M89: 17740.47 | N89: 4576118.85 | P89: ='6. ICMIRR_2018'!$K$88/12 -> 67407.10819 | Q89: 4179240.708
F90: 2023-07-01 | G90: 2023 | H90: Q3 | I90: 2023 Q3 | J90: 4345113.1 | K90: 75010.83 | L90: 0.0498 | M90: 18032.22 | N90: 4669161.9 | P90: ='6. ICMIRR_2018'!$K$88/12 -> 67407.10819 | Q90: 4246647.816
F91: 2023-08-01 | G91: 2023 | H91: Q3 | I91: 2023 Q3 | J91: 4420123.93 | K91: 70354.27 | L91: 0.0498 | M91: 18343.51 | N91: 4757859.68 | P91: ='6. ICMIRR_2018'!$K$88/12 -> 67407.10819 | Q91: 4314054.924
F92: 2023-09-01 | G92: 2023 | H92: Q3 | I92: 2023 Q3 | J92: 4490478.2 | K92: 70528.91 | L92: 0.0498 | M92: 18635.48 | N92: 4847024.07 | P92: ='6. ICMIRR_2018'!$K$88/12 -> 67407.10819 | Q92: 4381462.032
F93: 2023-10-01 | G93: 2023 | H93: Q4 | I93: 2023 Q4 | J93: 4561007.11 | K93: 70438.7 | L93: 0.0549 | M93: 20866.61 | N93: 4938329.38 | P93: ='6. ICMIRR_2018'!$K$88/12 -> 67407.10819 | Q93: 4448869.14
F94: 2023-11-01 | G94: 2023 | H94: Q4 | I94: 2023 Q4 | J94: 4631445.81 | K94: 69189.22 | L94: 0.0549 | M94: 21188.86 | N94: 5028707.46 | P94: ='6. ICMIRR_2018'!$K$88/12 -> 67407.10819 | Q94: 4516276.248
F95: 2023-12-01 | G95: 2023 | H95: =IF(MONTH(F95)=0,"",IF(MONTH(F95)<4,"Q1",IF(MONTH(F95)<7,"Q2",IF(MONTH(F95)<10,"Q3","Q4")))) -> Q4 | I95: 2023 Q4 | J95: 4700635.03 | K95: 73860.23 | L95: 0.0549 | M95: 21505.41 | N95: 5124073.1 | P95: ='6. ICMIRR_2018'!$K$88/12 -> 67407.10819 | Q95: 4583683.357
F96: 2024-01-01 | G96: =YEAR(F96) -> 2024 | H96: =IF(MONTH(F96)=0,"",IF(MONTH(F96)<4,"Q1",IF(MONTH(F96)<7,"Q2",IF(MONTH(F96)<10,"Q3","Q4")))) -> Q1 | I96: 2024 Q1 | J96: =J95+K95 -> 4774495.26 | K96: 72016.07 | L96: =VLOOKUP(I96,$B$22:$D$59,2) -> 0.0549 | M96: =ROUND(J96*L96/12,2) -> 21843.32 | N96: =N95+K96+M96 -> 5217932.49 | P96: ='6. ICMIRR_2018'!$K$88/12 -> 67407.10819 | Q96: =Q95+P96 -> 4651090.465
F97: 2024-02-01 | G97: 2024 | H97: Q1 | I97: 2024 Q1 | J97: 4846511.33 | K97: 67661.74 | L97: 0.0549 | M97: 22172.79 | N97: 5307767.02 | P97: ='6. ICMIRR_2018'!$K$88/12 -> 67407.10819 | Q97: 4718497.573
F98: 2024-03-01 | G98: 2024 | H98: Q1 | I98: 2024 Q1 | J98: 4914173.07 | K98: 70376.43 | L98: 0.0549 | M98: 22482.34 | N98: 5400625.79 | P98: ='6. ICMIRR_2018'!$K$88/12 -> 67407.10819 | Q98: 4785904.681
F99: 2024-04-01 | G99: 2024 | H99: Q2 | I99: 2024 Q2 | J99: 4984549.5 | K99: 71976.64 | L99: 0.0549 | M99: 22804.31 | N99: 5495406.74 | P99: ='6. ICMIRR_2018'!$K$88/12 -> 67407.10819 | Q99: 4853311.789
F100: 2024-05-01 | G100: 2024 | H100: Q2 | I100: 2024 Q2 | J100: 5056526.14 | K100: 70641.25 | L100: 0.0549 | M100: 23133.61 | N100: 5589181.6 | P100: ='6. ICMIRR_2018'!$K$88/12 -> 67407.10819 | Q100: 4920718.898
F101: 2024-06-01 | G101: 2024 | H101: Q2 | I101: 2024 Q2 | J101: 5127167.39 | K101: 74732.09 | L101: 0.0549 | M101: 23456.79 | N101: 5687370.48 | P101: ='6. ICMIRR_2018'!$K$88/12 -> 67407.10819 | Q101: 4988126.006
F102: 2024-07-01 | G102: 2024 | H102: Q3 | I102: 2024 Q3 | J102: 5201899.48 | K102: 73037.5 | L102: 0.052 | M102: 22541.56 | N102: 5782949.54 | P102: ='6. ICMIRR_2018'!$K$88/12 -> 67407.10819 | Q102: 5055533.114
F103: 2024-08-01 | G103: 2024 | H103: Q3 | I103: 2024 Q3 | J103: 5274936.98 | K103: 75337.2 | L103: 0.052 | M103: 22858.06 | N103: 5881144.8 | P103: ='6. ICMIRR_2018'!$K$88/12 -> 67407.10819 | Q103: 5122940.222
F104: 2024-09-01 | G104: 2024 | H104: Q3 | I104: 2024 Q3 | J104: 5350274.18 | K104: 72052.97 | L104: 0.052 | M104: 23184.52 | N104: 5976382.29 | P104: ='6. ICMIRR_2018'!$K$88/12 -> 67407.10819 | Q104: 5190347.33
F105: 2024-10-01 | G105: 2024 | H105: Q4 | I105: 2024 Q4 | J105: 5422327.15 | K105: 70181.7 | L105: 0.044 | M105: 19881.87 | N105: 6066445.86 | P105: ='6. ICMIRR_2018'!$K$88/12 -> 67407.10819 | Q105: 5257754.439
F106: 2024-11-01 | G106: 2024 | H106: Q4 | I106: 2024 Q4 | J106: 5492508.85 | K106: 71160.91 | L106: 0.044 | M106: 20139.2 | N106: 6157745.97 | P106: ='6. ICMIRR_2018'!$K$88/12 -> 67407.10819 | Q106: 5325161.547
F107: 2024-12-01 | G107: 2024 | H107: =IF(MONTH(F107)=0,"",IF(MONTH(F107)<4,"Q1",IF(MONTH(F107)<7,"Q2",IF(MONTH(F107)<10,"Q3","Q4")))) -> Q4 | I107: 2024 Q4 | J107: 5563669.76 | K107: 70757.28 | L107: 0.044 | M107: 20400.12 | N107: 6248903.37 | P107: ='6. ICMIRR_2018'!$K$88/12 -> 67407.10819 | Q107: 5392568.655
F108: 2025-01-01 | G108: =YEAR(F108) -> 2025 | H108: =IF(MONTH(F108)=0,"",IF(MONTH(F108)<4,"Q1",IF(MONTH(F108)<7,"Q2",IF(MONTH(F108)<10,"Q3","Q4")))) -> Q1 | I108: 2025 Q1 | J108: =J107+K107 -> 5634427.04 | K108: 74712.76 | L108: =VLOOKUP(I108,$B$22:$D$59,2) -> 0.0364 | M108: =ROUND(J108*L108/12,2) -> 17091.1 | N108: =N107+K108+M108 -> 6340707.23 | P108: ='6. ICMIRR_2018'!$K$88/12 -> 67407.10819 | Q108: =Q107+P108 -> 5459975.763
F109: 2025-02-01 | G109: 2025 | H109: Q1 | I109: 2025 Q1 | J109: 5709139.8 | K109: 67774.81 | L109: 0.0364 | M109: 17317.72 | N109: 6425799.76 | P109: ='6. ICMIRR_2018'!$K$88/12 -> 67407.10819 | Q109: 5527382.871
F110: 2025-03-01 | G110: 2025 | H110: Q1 | I110: 2025 Q1 | J110: 5776914.61 | K110: 72607.12 | L110: 0.0364 | M110: 17523.31 | N110: 6515930.19 | P110: ='6. ICMIRR_2018'!$K$88/12 -> 67407.10819 | Q110: 5594789.979
F111: 2025-04-01 | G111: 2025 | H111: Q2 | I111: 2025 Q2 | J111: 5849521.73 | K111: 69309.18 | L111: 0.0316 | M111: 15403.74 | N111: 6600643.11 | P111: ='6. ICMIRR_2018'!$K$88/12 -> 67407.10819 | Q111: 5662197.088
F112: 2025-05-01 | G112: 2025 | H112: Q2 | I112: 2025 Q2 | J112: 5918830.91 | K112: 72098.29523 | L112: =VLOOKUP(I112,$B$22:$D$59,2) -> 0.0316 | M112: 15586.25 | N112: 6688327.655 | P112: ='6. ICMIRR_2018'!$K$88/12 -> 67407.10819 | Q112: 5729604.196
F113: 2025-06-01 | G113: 2025 | H113: Q2 | I113: 2025 Q2 | J113: 5990929.205 | K113: 73132.1741 | L113: 0.0316 | M113: 15776.11 | N113: 6777235.939 | P113: ='6. ICMIRR_2018'!$K$88/12 -> 67407.10819 | Q113: 5797011.304
F114: 2025-07-01 | G114: 2025 | H114: Q3 | I114: 2025 Q3 | J114: 6064061.379 | K114: 77786.21267 | L114: 0.0316 | M114: 15968.69 | N114: 6870990.842 | P114: ='6. ICMIRR_2018'!$K$88/12 -> 67407.10819 | Q114: 5864418.412
F115: 2025-08-01 | G115: 2025 | H115: Q3 | I115: 2025 Q3 | J115: 6141847.592 | K115: 74299.90133 | L115: 0.0316 | M115: 16173.53 | N115: 6961464.273 | P115: ='6. ICMIRR_2018'!$K$88/12 -> 67407.10819 | Q115: 5931825.52
F116: 2025-09-01 | G116: 2025 | H116: Q3 | I116: 2025 Q3 | J116: 6216147.493 | K116: 70340.61535 | L116: 0.0316 | M116: 16369.19 | N116: 7048174.079 | P116: ='6. ICMIRR_2018'!$K$88/12 -> 67407.10819 | Q116: 5999232.629
F117: 2025-10-01 | G117: 2025 | H117: Q4 | I117: 2025 Q4 | J117: 6286488.109 | K117: 72455.2081 | L117: 0.0316 | M117: 16554.42 | N117: 7137183.707 | P117: ='6. ICMIRR_2018'!$K$88/12 -> 67407.10819 | Q117: 6066639.737
F118: 2025-11-01 | G118: 2025 | H118: Q4 | I118: 2025 Q4 | J118: 6358943.317 | K118: 71495.00231 | L118: 0.0316 | M118: 16745.22 | N118: 7225423.929 | P118: ='6. ICMIRR_2018'!$K$88/12 -> 67407.10819 | Q118: 6134046.845
F119: 2025-12-01 | G119: 2025 | H119: =IF(MONTH(F119)=0,"",IF(MONTH(F119)<4,"Q1",IF(MONTH(F119)<7,"Q2",IF(MONTH(F119)<10,"Q3","Q4")))) -> Q4 | I119: 2025 Q4 | J119: 6430438.319 | K119: 73634.72567 | L119: 0.0316 | M119: 16933.49 | N119: 7315992.145 | P119: ='6. ICMIRR_2018'!$K$88/12 -> 67407.10819 | Q119: 6201453.953
F120: 2026-01-01 | G120: =YEAR(F120) -> 2026 | H120: =IF(MONTH(F120)=0,"",IF(MONTH(F120)<4,"Q1",IF(MONTH(F120)<7,"Q2",IF(MONTH(F120)<10,"Q3","Q4")))) -> Q1 | I120: 2026 Q1 | J120: =J119+K119 -> 6504073.045 | K120: 73727.82482 | L120: =VLOOKUP(I120,$B$22:$D$59,2) -> 0.0316 | M120: =ROUND(J120*L120/12,2) -> 17127.39 | N120: =N119+K120+M120 -> 7406847.36 | P120: ='6. ICMIRR_2018'!$K$88/12 -> 67407.10819 | Q120: =Q119+P120 -> 6268861.061
F121: 2026-02-01 | G121: 2026 | H121: Q1 | I121: 2026 Q1 | J121: 6577800.87 | K121: 66401.67649 | L121: 0.0316 | M121: 17321.54 | N121: 7490570.576 | P121: ='6. ICMIRR_2018'!$K$88/12 -> 67407.10819 | Q121: 6336268.17
F122: 2026-03-01 | G122: 2026 | H122: Q1 | I122: 2026 Q1 | J122: 6644202.546 | K122: 72423.14967 | L122: 0.0316 | M122: 17496.4 | N122: 7580490.126 | P122: ='6. ICMIRR_2018'!$K$88/12 -> 67407.10819 | Q122: 6403675.278
F123: 2026-04-01 | G123: 2026 | H123: Q2 | I123: 2026 Q2 | J123: 6716625.696 | K123: 70669.91196 | L123: 0.0316 | M123: 17687.11 | N123: 7668847.148 | P123: ='6. ICMIRR_2018'!$K$88/12 -> 67407.10819 | Q123: 6471082.386
F124: 2026-05-01 | G124: 2026 | H124: Q2 | I124: 2026 Q2 | J124: 6787295.608 | K124: 72573.42293 | L124: 0.0316 | M124: 17873.21 | N124: 7759293.781 | P124: ='6. ICMIRR_2018'!$K$88/12 -> 67407.10819 | Q124: 6538489.494
F125: 2026-06-01 | G125: 2026 | H125: Q2 | I125: 2026 Q2 | J125: 6859869.031 | K125: 73637.88393 | L125: 0.0316 | M125: 18064.32 | N125: 7850995.985 | P125: ='6. ICMIRR_2018'!$K$88/12 -> 67407.10819 | Q125: 6605896.602
F126: 2026-07-01 | G126: 2026 | H126: Q3 | I126: 2026 Q3 | J126: 6933506.915 | K126: 78343.84485 | L126: 0.0316 | M126: 18258.23 | N126: 7947598.059 | P126: ='6. ICMIRR_2018'!$K$88/12 -> 67407.10819 | Q126: 6673303.71
F127: 2026-08-01 | G127: 2026 | H127: Q3 | I127: 2026 Q3 | J127: 7011850.759 | K127: 74813.16961 | L127: 0.0316 | M127: 18464.54 | N127: 8040875.769 | P127: ='6. ICMIRR_2018'!$K$88/12 -> 67407.10819 | Q127: 6740710.819
F128: 2026-09-01 | G128: 2026 | H128: Q3 | I128: 2026 Q3 | J128: 7086663.929 | K128: 70781.55888 | L128: 0.0316 | M128: 18661.55 | N128: 8130318.878 | P128: ='6. ICMIRR_2018'!$K$88/12 -> 67407.10819 | Q128: 6808117.927
F129: 2026-10-01 | G129: 2026 | H129: Q4 | I129: 2026 Q4 | J129: 7157445.488 | K129: 72894.98854 | L129: 0.0316 | M129: 18847.94 | N129: 8222061.806 | P129: ='6. ICMIRR_2018'!$K$88/12 -> 67407.10819 | Q129: 6875525.035
F130: 2026-11-01 | G130: 2026 | H130: Q4 | I130: 2026 Q4 | J130: 7230340.476 | K130: 71941.51072 | L130: 0.0316 | M130: 19039.9 | N130: 8313043.217 | P130: ='6. ICMIRR_2018'!$K$88/12 -> 67407.10819 | Q130: 6942932.143
F131: 2026-12-01 | G131: 2026 | H131: =IF(MONTH(F131)=0,"",IF(MONTH(F131)<4,"Q1",IF(MONTH(F131)<7,"Q2",IF(MONTH(F131)<10,"Q3","Q4")))) -> Q4 | I131: 2026 Q4 | J131: 7302281.987 | K131: 74083.51319 | L131: 0.0316 | M131: 19229.34 | N131: 8406356.07 | P131: ='6. ICMIRR_2018'!$K$88/12 -> 67407.10819 | Q131: 7010339.251

Sheet 8. Opex Interest Annual
B13: This worksheet calculates the interest on amortization/depreciation expense, in the absence of monthly data.
B16: Sheet 8: Interest on Amortization (Annual Data)
B21: Year | D21: OM&A | F21: Amortization Expense | H21: Cumulative OM&A and Amortization Expense | J21: Average Cumulative OM&A and Amortization Expense | L21: Average Annual Prescribed Interest Rate for Deferral and Variance Accounts (from Sheet 7) | N21: Simple Interest on OM&A and Amortization Expenses
F22: (from Sheet 6)
B23: 2018 | D23: 0 | F23: =-'4. ICM_Assets_and_Rate_Base'!I357 -> 344837.6036 | H23: =D23+F23 -> 344837.6036 | J23: =H23/2 -> 172418.8018 | L23: =AVERAGE('7. Rate Rider Revs'!C24:C27) -> 0.018625 | N23: =J23*L23 -> 3211.300184
B24: 2019 | D24: 0 | F24: =-'4. ICM_Assets_and_Rate_Base'!K357 -> 344837.6036 | H24: =H23+D24+F24 -> 689675.2073 | J24: =(H24+H23)/2 -> 517256.4055 | L24: =AVERAGE('7. Rate Rider Revs'!C28:C31) -> 0.022475 | N24: =J24*L24 -> 11625.33771
B25: 2020 | D25: 0 | F25: =-'4. ICM_Assets_and_Rate_Base'!M357 -> 344837.6036 | H25: =H24+D25+F25 -> 1034512.811 | J25: =(H25+H24)/2 -> 862094.0091 | L25: =AVERAGE('7. Rate Rider Revs'!C32:C35) -> 0.01375 | N25: 11853.79263
B26: 2021 | D26: 0 | F26: =-'4. ICM_Assets_and_Rate_Base'!O357 -> 344837.6036 | H26: 1379350.415 | J26: 1206931.613 | L26: =AVERAGE('7. Rate Rider Revs'!C36:C39) -> 0.0057 | N26: 6879.510193
B27: 2022 | D27: 0 | F27: =-'4. ICM_Assets_and_Rate_Base'!Q357 -> 344837.6036 | H27: =H26+D27+F27 -> 1724188.018 | J27: 1551769.216 | L27: =AVERAGE('7. Rate Rider Revs'!C40:C43) -> 0.01915 | N27: 29716.38049
B28: 2023 | D28: 0 | F28: =-'4. ICM_Assets_and_Rate_Base'!S357 -> 344837.6036 | H28: 2069025.622 | J28: 1896606.82 | L28: =AVERAGE('7. Rate Rider Revs'!C44:C47) -> 0.05045 | N28: 95683.81407
B29: 2024 | D29: 0 | F29: =-'4. ICM_Assets_and_Rate_Base'!U357 -> 344837.6036 | H29: 2413863.226 | J29: 2241444.424 | L29: =AVERAGE('7. Rate Rider Revs'!C48:C51) -> 0.05145 | N29: 115322.3156
B30: 2025 | D30: 0 | F30: =-'4. ICM_Assets_and_Rate_Base'!W357 -> 311550.8207 | H30: 2725414.046 | J30: 2569638.636 | L30: =AVERAGE('7. Rate Rider Revs'!C52:C55) -> 0.0328 | N30: 84284.14726
B31: 2026 | D31: 0 | F31: =F30 -> 311550.8207 | H31: 3036964.867 | J31: 2881189.456 | L31: =AVERAGE('7. Rate Rider Revs'!C56:C59) -> 0.0316 | N31: =J31*L31 -> 91045.58683
B34: Cumulative Interest to 2018 | N34: =SUM($N$23:N23) -> 3211.300184
B35: Cumulative Interest to 2019 | N35: =SUM($N$23:N24) -> 14836.6379
B36: Cumulative Interest to 2020 | N36: =SUM($N$23:N25) -> 26690.43052
B37: Cumulative Interest to 2021 | N37: =SUM($N$23:N26) -> 33569.94071
B38: Cumulative Interest to 2022 | N38: =SUM($N$23:N27) -> 63286.32121
B39: Cumulative Interest to 2023 | N39: =SUM($N$23:N28) -> 158970.1353
B40: Cumulative Interest to 2024 | N40: =SUM($N$23:N29) -> 274292.4509
B41: Cumulative Interest to 2025 | N41: =SUM($N$23:N30) -> 358576.5981
B42: Cumulative Interest to 2026 | N42: =SUM($N$23:N31) -> 449622.185

Sheet 9. IRR
B14: This worksheet calculates the ICM Incremental Revenue Requirement.
B17: Sheet 9: ICM Incremental Revenue Requirement
G20: 2018 | I20: 2019 | K20: 2020 | M20: 2021 | O20: 2022 | Q20: 2023 | S20: 2024 | U20: 2025 | W20: 2026 | Y20: Total
C22: Deferred and forecasted ICM Incremental Revenue Requirement (from Sheet 6) | G22: ='6. ICMIRR_2018'!$F$88/12*8 -> 734583.3384 | I22: ='6. ICMIRR_2018'!$F$88 -> 1101875.008 | K22: ='6. ICMIRR_2018'!$F$88 -> 1101875.008 | M22: ='6. ICMIRR_2018'!$F$88 -> 1101875.008 | O22: ='6. ICMIRR_2018'!$F$88 -> 1101875.008 | Q22: ='6. ICMIRR_2018'!$F$88 -> 1101875.008 | S22: ='6. ICMIRR_2018'!$F$88 -> 1101875.008 | U22: ='6. ICMIRR_2018'!$F$88 -> 1101875.008 | W22: ='6. ICMIRR_2018'!$F$88 -> 1101875.008 | Y22: =SUM(G22:W22) -> 9549583.4
C24: Interest on Deferred and forecasted Amortization Expense (Sheet 8) | G24: ='8. Opex Interest Annual'!$N$23 -> 3211.300184 | I24: ='8. Opex Interest Annual'!$N$24 -> 11625.33771 | K24: ='8. Opex Interest Annual'!$N$25 -> 11853.79263 | M24: ='8. Opex Interest Annual'!$N$26 -> 6879.510193 | O24: ='8. Opex Interest Annual'!$N$27 -> 29716.38049 | Q24: ='8. Opex Interest Annual'!$N$28 -> 95683.81407 | S24: ='8. Opex Interest Annual'!$N$29 -> 115322.3156 | U24: ='8. Opex Interest Annual'!$N$30 -> 84284.14726 | W24: ='8. Opex Interest Annual'!$N$31 -> 91045.58683 | Y24: =SUM(G24:W24) -> 449622.185
C27: ICM Rate Rider Revenues (from Sheet 7) | G27: =SUM('7. Rate Rider Revs'!K26:K35) -> 566484.53 | I27: =SUM('7. Rate Rider Revs'!K36:K47) -> 835766.69 | K27: =SUM('7. Rate Rider Revs'!K48:K59) -> 837027.68 | M27: =SUM('7. Rate Rider Revs'!K60:K71) -> 836489.03 | O27: =SUM('7. Rate Rider Revs'!K72:K83) -> 847138.87 | Q27: =SUM('7. Rate Rider Revs'!K84:K95) -> 851588.46 | S27: =SUM('7. Rate Rider Revs'!K96:K107) -> 859931.78 | U27: =SUM('7. Rate Rider Revs'!K108:K119) -> 869646.0048 | W27: =SUM('7. Rate Rider Revs'!K120:K131) -> 872292.4556 | Y27: =SUM(G27:W27) -> 7376365.5
C29: ICM Rate Rider Interest (from Sheet 7) | G29: =SUM('7. Rate Rider Revs'!M27:M35) -> 3436.97 | I29: =SUM('7. Rate Rider Revs'!M36:M47) -> 21089.43 | K29: =SUM('7. Rate Rider Revs'!M48:M59) -> 22808.34 | M29: =SUM('7. Rate Rider Revs'!M60:M71) -> 14923.68 | O29: =SUM('7. Rate Rider Revs'!M72:M83) -> 69218.7 | Q29: =SUM('7. Rate Rider Revs'!M84:M95) -> 218100.72 | S29: =SUM('7. Rate Rider Revs'!M96:M107) -> 264898.49 | U29: =SUM('7. Rate Rider Revs'!M108:M119) -> 197442.77 | W29: =SUM('7. Rate Rider Revs'!M120:M131) -> 218071.47 | Y29: =SUM(G29:W29) -> 1029990.57
C31: Net Deferred Revenue Requirement | G31: =(G22+G24)-(G27+G29) -> 167873.1386 | I31: =(I22+I24)-(I27+I29) -> 256644.2254 | K31: =(K22+K24)-(K27+K29) -> 253892.7803 | M31: =(M22+M24)-(M27+M29) -> 257341.8079 | O31: =(O22+O24)-(O27+O29) -> 215233.8182 | Q31: =(Q22+Q24)-(Q27+Q29) -> 127869.6417 | S31: =(S22+S24)-(S27+S29) -> 92367.05326 | U31: =(U22+U24)-(U27+U29) -> 119070.3801 | W31: =(W22+W24)-(W27+W29) -> 102556.6689 | Y31: =(Y22+Y24)-(Y27+Y29) -> 1592849.514
